Workbook

Sheet A CORUÑA
B2: LOCALIDADE: A CORUÑA
B4: CENTRO DE DESTINO: SERVIZO COMÚN DE TRAMITACIÓN DO TRIBUNAL SUPERIOR DE XUSTIZA (SCT TSX) | P4: PLANTILLA ACTUAL
B5: COD | C5: DENOMINACIÓN DO POSTO | D5: DOTACIÓN V2 | E5: DOTACIÓN V3 | F5: DOTACIÓN V4 | G5: CXP | H5: CE | I5: TIPO DE POSTO | J5: CORPO | K5: FORMA DE PROVISIÓN | L5: REQUISITOS | M5: MÉRITOS | N5: OBS. | Q5: CXPA | R5: CTPA | S5: CAX | T5: TOTAL | W5: CXPA | X5: CTPA | Y5: CAX | Z5: TOTAL
C6: Xestión - Xefatura de equipo SCT TSXG | D6: 1 | E6: 1 | F6: 1 | G6: 4,199.16 | H6: 10,134.72 | I6: Sing. | J6: CXPA | K6: CE | M6: 1101, 1102, 1104, 1105, 1106, 1202, 2001, 3114, 4001 | P6: TSXG (SG+S.APOIO+RR+3 SALAS) | Q6: 24 | R6: 48 | S6: 17 | T6: =Q6+R6+S6 -> 89 | V6: SG: | W6: 3 | X6: 6 | Y6: 2 | Z6: =+SUM(W6:Y6) -> 11
C7: Xestión - SCT TSX | D7: 18 | E7: 18 | F7: 18 | G7: 4,199.16 | H7: 8,295.00 | I7: Xenér. | J7: CXPA | K7: CT | P7: AUD. PROVINCIAL (5 + Secretaría+RR) | Q7: 12 | R7: 19 | S7: 8 | T7: =Q7+R7+S7 -> 39 | V7: S.APOIO TSX: | W7: 2 | X7: 4 | Y7: 2 | Z7: =+SUM(W7:Y7) -> 8
C8: Tramitación - SCT TSX | D8: 37 | E8: 37 | F8: 38 | G8: 3,570.00 | H8: 7,889.88 | I8: Xenér. | J8: CTPA | K8: CT | P8: XDO. PRIM. INSTANCIA (16) | Q8: 51 | R8: 64 | S8: 16 | T8: =Q8+R8+S8 -> 131 | V8: RR TSX: | W8: 1 | X8: 2 | Y8: 1 | Z8: 4
P9: XDO. CONT-ADTVO. (4) | Q9: 8 | R9: 8 | S9: 4 | T9: =Q9+R9+S9 -> 20 | V9: SALA CONTENC: | W9: 10 | X9: 21 | Y9: 6 | Z9: 37
B10: CENTRO DE DESTINO: SECRETARÍA DO GOBERNO | P10: XDO. SOCIAL (7) | Q10: 14 | R10: 28 | S10: 14 | T10: =Q10+R10+S10 -> 56 | V10: SALA SOCIAL: | W10: 6 | X10: 13 | Y10: 5 | Z10: 24
B11: COD | C11: DENOMINACIÓN DO POSTO | D11: DOTACIÓN V2 | E11: DOTACIÓN V3 | F11: DOTACIÓN V4 | G11: CXP | H11: CE | I11: TIPO DE POSTO | J11: CORPO | K11: FORMA DE PROVISIÓN | L11: REQUISITOS | M11: MÉRITOS | N11: OBS. | P11: XDO. MERCANTIL (3) | Q11: 6 | R11: 9 | S11: 3 | T11: =Q11+R11+S11 -> 18 | V11: SALA CIVIL E PENAL: | W11: 2 | X11: 2 | Y11: 1 | Z11: 5
C12: Xestión - Xefatura SG I | D12: 3 | E12: 3 | F12: 3 | G12: 4,199.16 | H12: 10,441.68 | I12: Sing. | J12: CXPA | K12: LD | N12: Dispoñibilidade horaria | P12: XDO. PENAL (6) | Q12: 12 | R12: 24 | S12: 12 | T12: 48 | Z12: =+SUM(Z6:Z11) -> 89
C13: Xestión - SG | D13: 1 | E13: 1 | F13: 1 | G13: 4,199.16 | H13: 8,295.00 | I13: Xenér. | J13: CXPA | K13: CT | P13: XDO. INSTRUCIÓN (8) | Q13: 16 | R13: 32 | S13: 16 | T13: =Q13+R13+S13 -> 64
C14: Tramitación - Xefatura SG II | D14: 8 | E14: 8 | F14: 2 | G14: 3,570.00 | H14: 9,729.84 | I14: Sing. | J14: CTPA | K14: CE | M14: 1104, 1108, 1202, 3115 | P14: XDO. MENORES (1) | Q14: 1 | R14: 4 | S14: 1 | T14: 6
C15: Tramitación - SG | D15: 8 | E15: 0 | F15: 5 | G15: 3,570.00 | H15: 7,889.88 | I15: Xenér. | J15: CTPA | K15: CT | P15: XDO. VIXILANCIA PENITENCIARIA (1) | Q15: 2 | R15: 3 | S15: 1 | T15: 6
C16: Auxilio - SG | D16: 2 | E16: 2 | F16: 2 | G16: 2,682.48 | H16: 7,820.76 | I16: Xenér. | J16: CAX | K16: CT | P16: XDO. VSM | Q16: 2 | R16: 5 | S16: 2 | T16: 9
C17: Tramitación - Xefatura SG na Coruña | D17: 2 | E17: 2 | F17: 2 | G17: 3,570.00 | H17: 10,036.68 | I17: Sing. | J17: CTPA | K17: LD | N17: Dispoñibilidade horaria | P17: DECANATO.SCA | Q17: 5 | R17: 12 | S17: 2 | T17: =Q17+R17+S17 -> 19
C18: Tramitación - Xefatura SG en Lugo | D18: 2 | E18: 2 | F18: 2 | G18: 3,570.00 | H18: 10,036.68 | I18: Sing. | J18: CTPA | K18: LD | N18: Dispoñibilidade horaria. Postos localizados en Lugo | P18: DECANATO. NOTIFICACIÓNS E EMBARGOS | Q18: 8 | R18: 3 | S18: 12 | T18: =Q18+R18+S18 -> 23
C19: Tramitación - Xefatura SG en Ourense | D19: 2 | E19: 2 | F19: 2 | G19: 3,570.00 | H19: 10,036.68 | I19: Sing. | J19: CTPA | K19: LD | N19: Dispoñibilidade horaria. Postos localizados en Ourense | P19: DECANATO | Q19: 0 | R19: 5 | S19: 5 | T19: 10
C20: Tramitación - Xefatura SG en Pontevedra | D20: 2 | E20: 2 | F20: 2 | G20: 3,570.00 | H20: 10,036.68 | I20: Sing. | J20: CTPA | K20: LD | N20: Dispoñibilidade horaria. Postos localizados en Pontevedra | P20: DECANATO. ATENCIÓN Á CIDADANÍA | Q20: 1 | R20: 1 | S20: 0 | T20: 2
P21: TOTAL | Q21: =SUM(Q6:Q20) -> 162 | R21: =SUM(R6:R20) -> 265 | S21: =SUM(S6:S20) -> 113 | T21: =Q21+R21+S21 -> 540
B22: CENTRO DE DESTINO: SERVIZO COMÚN DE TRAMITACIÓN DO TRIBUNAL DE INSTANCIA (SCT TI) E SERVIZO COMÚN DE TRAMITACIÓN DA AUDIENCIA PROVINCIAL (SCT AP)
B23: COD | C23: DENOMINACIÓN DO POSTO | D23: DOTACIÓN V2 | E23: DOTACIÓN V3 | F23: DOTACIÓN V4 | G23: CXP | H23: CE | I23: TIPO DE POSTO | J23: CORPO | K23: FORMA DE PROVISIÓN | L23: REQUISITOS | M23: MÉRITOS | N23: OBS. | Q23: =+Q21 -> 162 | R23: =+R21 -> 265 | S23: =+S21 -> 113 | T23: =+SUM(Q23:S23) -> 540
C24: Xestión - Xefatura de equipo SCT AP | D24: 1 | E24: 1 | F24: 1 | G24: 4,199.16 | H24: 10,134.72 | I24: Sing. | J24: CXPA | K24: CE | M24: 1101, 1102, 1104, 1202, 2001, 3116, 4001 | P24: Prazas amortizables eliminadas:
C25: Xestión - SCT AP | D25: 9 | E25: 9 | F25: 9 | G25: 4,199.16 | H25: 8,295.00 | I25: Xenér. | J25: CXPA | K25: CT | P25: AP Sección 3: 2 CXPA
C26: Tramitación - SCT AP | D26: 15 | E26: 15 | F26: 14 | G26: 3,570.00 | H26: 7,889.88 | I26: Xenér. | J26: CTPA | K26: CT | P26: AP Sección 3: 1 CTPA
C27: ÁREA CIVIL, FAMILIA, INFANCIA E CAPACIDADE E MERCANTIL | P27: AP Sección 4: 1 CTPA
C28: Xestión - Xefatura de equipo SCT TI Civil e Merc. | D28: 1 | E28: 1 | F28: 1 | G28: 4,199.16 | H28: 10,134.72 | I28: Sing. | J28: CXPA | K28: CE | M28: 1101, 1104,1202, 2001, 3101,, 4001 | P28: AP Sección 4: 1 CAX
C29: Xestión - SCT TI Civil , Familia e Merc. | D29: 40 | E29: 38 | F29: 33 | G29: 4,199.16 | H29: 8,295.00 | I29: Xenér. | J29: CXPA | K29: CT | P29: AP Sección 5: 1 CXPA
C30: Tramitación - Xefatura de equipo SCT TI Civil e Merc. | D30: 1 | E30: 1 | F30: 1 | G30: 3,570.00 | H30: 9,729.84 | I30: Sing. | J30: CTPA | K30: CE | M30: 1101, 1104,1202, 3101, 4001 | P30: AP Sección 5: 2 CTPA
C31: Tramitación - SCT TI Civil, Familia e Merc. | D31: 53 | E31: 51 | F31: 47 | G31: 3,570.00 | H31: 7,889.88 | I31: Xenér. | J31: CTPA | K31: CT | P31: Xdo. Instrucción 2: 1 CXPA
C32: Equipo familia, infancia e capacidade | P32: Xdo. Instrucción 4: 1 CXPA
C33: Xestión - Xefatura de equipo SCT TI Familia, infancia e capacidade | D33: 1 | E33: 1 | F33: 1 | G33: 4,199.16 | H33: 10,134.72 | I33: Sing. | J33: CXPA | K33: CE | M33: 1101, 1104,1202, 2001, 3101, 4001 | P33: Xdo. Cont-Adtvo. 2: 1 CTPA
C34: Xestión - SCT TI Civil, Familia e Merc. (Equipo Familia, infancia e capacidade) | E34: 2 | F34: 6 | G34: 4,199.16 | H34: 8,295.00 | I34: Xenér. | J34: CXPA | K34: CT | P34: Xdo. Cont-Adtvo. 3: 1 CTPA
C35: Tramitación - SCT TI Civil, Familia e Merc. (Equipo Familia, infancia e capacidade) | E35: 2 | F35: 6 | G35: 3,570.00 | H35: 7,889.88 | I35: Xenér. | J35: CTPA | K35: CT
C36: ÁREA SOCIAL E CONTENCIOSO-ADMINISTRATIVA
C37: Xestión - Xefatura de equipo SCT TI CA e Social | D37: 1 | E37: 1 | F37: 1 | G37: 4,199.16 | H37: 10,134.72 | I37: Sing. | J37: CXPA | K37: CE | M37: 1104, 1105, 1106. 1202, 2001, 3106, 3107, 4001
C38: Xestión - SCT TI CA e Social | D38: 15 | E38: 15 | F38: 15 | G38: 4,199.16 | H38: 8,295.00 | I38: Xenér. | J38: CXPA | K38: CT
C39: Tramitación - Xefatura de equipo SCT TI CA e Social | D39: 1 | E39: 1 | F39: 1 | G39: 3,570.00 | H39: 9,729.84 | I39: Sing. | J39: CTPA | K39: CE | M39: 1104, 1105, 1106. 1202, 3106, 3107, 4001
C40: Tramitación - SCT TI CA e Social | D40: 28 | E40: 28 | F40: 28 | G40: 3,570.00 | H40: 7,889.88 | I40: Xenér. | J40: CTPA | K40: CT
C41: ÁREA PENAL
C42: Xestión - Xefatura de equipo SCT TI Penal | D42: 1 | E42: 1 | F42: 1 | G42: 4,199.16 | H42: 10,134.72 | I42: Sing. | J42: CXPA | K42: CE | M42: 1102, 1104, 1202, 2001, 3102, 4001
C43: Xestión - SCT TI Penal | D43: 14 | E43: 14 | F43: 16 | G43: 4,199.16 | H43: 8,295.00 | I43: Xenér. | J43: CXPA | K43: CT | N43: GA
C44: Xestión - SCT TI Penal | D44: 2 | E44: 2 | F44: 2 | G44: 4,199.16 | H44: 8,570.64 | I44: Xenér. | J44: CXPA | K44: CT | N44: VSM
C45: Xestión - SCT TI Penal | D45: 6 | E45: 6 | F45: 4 | G45: 4,199.16 | H45: 8,295.00 | I45: Xenér. | J45: CXPA | K45: CT
C46: Tramitación - Xefatura de equipo SCT TI Penal | D46: 1 | E46: 1 | F46: 1 | G46: 3,570.00 | H46: 9,729.84 | I46: Sing. | J46: CTPA | K46: CE | M46: 1102, 1104, 1202, 3102, 4001
C47: Tramitación - SCT TI Penal | D47: 28 | E47: 28 | F47: 32 | G47: 3,570.00 | H47: 7,889.88 | I47: Xenér. | J47: CTPA | K47: CT | N47: GA
C48: Tramitación - SCT TI Penal | D48: 5 | E48: 6 | F48: 7 | G48: 3,570.00 | H48: 8,165.40 | I48: Xenér. | J48: CTPA | K48: CT | N48: VSM
C49: Tramitación - SCT TI Penal | D49: 17 | E49: 16 | F49: 12 | G49: 3,570.00 | H49: 7,889.88 | I49: Xenér. | J49: CTPA | K49: CT
B51: CENTRO DE DESTINO: SERVIZO COMÚN XERAL (SCX)
B52: COD | C52: DENOMINACIÓN DO POSTO | D52: DOTACIÓN V2 | E52: DOTACIÓN V3 | F52: DOTACIÓN V4 | G52: CXP | H52: CE | I52: TIPO DE POSTO | J52: CORPO | K52: FORMA DE PROVISIÓN | L52: REQUISITOS | M52: MÉRITOS | N52: OBS.
C53: ÁREA REXISTRO - REPARTICIÓN E ASUNTOS XERAIS
C54: Xestión - Xefatura de Área Rexistro - Repartición e Asuntos Xerais | D54: 1 | E54: 1 | F54: 1 | G54: 4,199.16 | H54: 10,441.68 | I54: Sing. | J54: CXPA | K54: CE | M54: 1101, 1102, 1104, 1105, 1106, 1108, 1202, 2001, 3110, 3111, 4001
C55: Xestión - Rexistro - Repartición e Asuntos Xerais | D55: 5 | E55: 5 | F55: 5 | G55: 4,199.16 | H55: 8,295.00 | I55: Xenér. | J55: CXPA | K55: CT
C56: Tramitación - Xefatura de equipo Rexistro - Repartición e Asuntos Xerais | D56: 1 | E56: 1 | F56: 1 | G56: 3,570.00 | H56: 9,729.84 | I56: Sing. | J56: CTPA | K56: CE | M56: 1101, 1102, 1104, 1105, 1106, 1202, 3110, 3111, 4001
C57: Tramitación - Rexistro - Repartición e Asuntos Xerais | D57: 10 | E57: 10 | F57: 10 | G57: 3,570.00 | H57: 7,889.88 | I57: Xenér. | J57: CTPA | K57: CT
C58: Auxilio - Xefatura de equipo Rexistro - Repartición e Asuntos Xerais | D58: 1 | E58: 1 | F58: 1 | G58: 2,682.48 | H58: 9,660.72 | I58: Sing. | J58: CAX | K58: CE | M58: 1104, 1202, 3110, 3113, 4001
C59: Auxilio - Xefatura de equipo Rexistro - Repartición e Asuntos Xerais | D59: 1 | E59: 1 | F59: 1 | G59: 2,682.48 | H59: 9,660.72 | I59: Sing. | J59: CAX | K59: CE | M59: 1104, 1202, 3110, 3113, 4001
C60: Auxilio - Xefatura de equipo Rexistro - Repartición e Asuntos Xerais | D60: 1 | E60: 1 | F60: 1 | G60: 2,682.48 | H60: 9,660.72 | I60: Sing. | J60: CAX | K60: CE | M60: 1104, 1202, 3110, 3113, 4001
C61: Auxilio - Xefatura de equipo Rexistro - Repartición e Asuntos Xerais | D61: 1 | E61: 1 | F61: 1 | G61: 2,682.48 | H61: 9,660.72 | I61: Sing. | J61: CAX | K61: CE | M61: 1104, 1202, 3110, 3113, 4001
C62: Auxilio - Xefatura de equipo Rexistro - Repartición e Asuntos Xerais | D62: 1 | E62: 1 | F62: 1 | G62: 2,682.48 | H62: 9,660.72 | I62: Sing. | J62: CAX | K62: CE | M62: 1104, 1202, 3110, 3113, 4001
C63: Auxilio - Rexistro - Repartición e Asuntos Xerais | D63: 14 | E63: 14 | F63: 16 | G63: 2,682.48 | H63: 7,820.76 | I63: Xenér. | J63: CAX | K63: CT | N63: GA
C64: Auxilio - Rexistro - Repartición e Asuntos Xerais | D64: 2 | E64: 2 | F64: 2 | G64: 2,682.48 | H64: 8,096.28 | I64: Xenér. | J64: CAX | K64: CT | N64: VSM
C65: Auxilio - Rexistro - Repartición e Asuntos Xerais | D65: 80 | E65: 80 | F65: 78 | G65: 2,682.48 | H65: 7,820.76 | I65: Xenér. | J65: CAX | K65: CT
C66: ÁREA ACTOS DE COMUNICACIÓN
C67: Xestión - Xefatura de Área Actos de Comunicación | D67: 1 | E67: 1 | F67: 1 | G67: 4,199.16 | H67: 12,353.88 | I67: Sing. | J67: CXPA | K67: CE | M67: 1101, 1102, 1104, 1105, 1106, 1108,1202, 2001, 3112, 4001
C68: Xestión - Actos de Comunicación | D68: 7 | E68: 7 | F68: 7 | G68: 4,199.16 | H68: 10,207.20 | I68: Xenér. | J68: CXPA | K68: CT
C69: Tramitación - Xefatura de equipo Actos de Comunicación | D69: 1 | E69: 1 | F69: 1 | G69: 3,570.00 | H69: 10,494.84 | I69: Sing. | J69: CTPA | K69: CE | M69: 1101, 1102, 1104, 1105, 1106, 1108,1202, 3112, 4001
C70: Tramitación - Actos de Comunicación | D70: 2 | E70: 2 | F70: 2 | G70: 3,570.00 | H70: 8,654.88 | I70: Xenér. | J70: CTPA | K70: CT
C71: Auxilio - Xefatura de equipo Actos de Comunicación | D71: 1 | E71: 1 | F71: 1 | G71: 2,682.48 | H71: 11,572.68 | I71: Sing. | J71: CAX | K71: CE | M71: 1104, 1108, 1202, 3112, 4001
C72: Auxilio - Actos de Comunicación | D72: 9 | E72: 9 | F72: 9 | G72: 2,682.48 | H72: 9,732.72 | I72: Xenér. | J72: CAX | K72: CT
B74: CENTRO DE DESTINO: SERVIZO COMÚN DE EXECUCIÓN (SCEX)
B75: COD | C75: DENOMINACIÓN DO POSTO | D75: DOTACIÓN V2 | E75: DOTACIÓN V3 | F75: DOTACIÓN V4 | G75: CXP | H75: CE | I75: TIPO DE POSTO | J75: CORPO | K75: FORMA DE PROVISIÓN | L75: REQUISITOS | M75: MÉRITOS | N75: OBS.
C76: ÁREA CIVIL, SOCIAL, CONTENCIOSO - ADMINISTRATIVA, FAMILIA, INCAPACIDADE E INFANCIA E MERCANTIL
C77: Xestión - Xefatura de equipo SCEX Civil, Familia, Mercantil, CA e Social | D77: 1 | E77: 1 | F77: 1 | G77: 4,199.16 | H77: 10,134.72 | I77: Sing. | J77: CXPA | K77: CE | M77: 1101, 1104, 1105, 1106, 1202, 2001, 3103, 3108, 3109, 4001
C78: Xestión - SCEX Civil, Familia, Mercantil, CA e Social | D78: 23 | E78: 23 | F78: 23 | G78: 4,199.16 | H78: 8,295.00 | I78: Xenér. | J78: CXPA | K78: CT
C79: Tramitación - SCEX Civil, Familia, Mercantil, CA e Social | D79: 33 | E79: 33 | F79: 33 | G79: 3,570.00 | H79: 7,889.88 | I79: Xenér. | J79: CTPA | K79: CT
C80: ÁREA PENAL
C81: Xestión - Xefatura de equipo SCEX Penal | D81: 1 | E81: 1 | F81: 1 | G81: 4,199.16 | H81: 10,134.72 | I81: Sing. | J81: CXPA | K81: CE | M81: 1102, 1104, 1202, 2001, 3104, 4001
C82: Xestión - SCEX Penal | D82: 10 | E82: 10 | F82: 10 | G82: 4,199.16 | H82: 8,295.00 | I82: Xenér. | J82: CXPA | K82: CT
C83: Tramitación - SCEX Penal | D83: 22 | E83: 22 | F83: 23 | G83: 3,570.00 | H83: 7,889.88 | I83: Xenér. | J83: CTPA | K83: CT
D85: 109 | E85: Ex civil: | F85: 6,644 | G85: =F85/(F77+F78+F79) -> 116.6 | H85: por funcionario
D86: 131 | E86: Ex penal: | F86: 4,351 | G86: =F86/SUM(F81:F83) -> 128.0 | H86: por funcionario
C88: SCT: | D88: =+#REF!/#REF! ->  | E88: =+SUM(F24:F49) -> 239 | F88: =+E88/$E$91 -> 67% | H88: PLANTILLA NOVA OFICINA
C89: SCX: | D89: =+#REF!/#REF! ->  | E89: =+SUM(F54:F57)+SUM(F67:F70) -> 28 | F89: =+E89/$E$91 -> 8% | H89: CXPA | I89: CTPA | J89: CAX | K89: TOTAL
C90: SCEX: | D90: =+#REF!/#REF! ->  | E90: =+SUM(F77:F83) -> 91 | F90: 25% | H90: =+F6+F7+F12+F24+F25+F28+F29+F33+F34+F37+F38+F42+F43+F44+F45+F54+F55+F67+F68+F77+F78+F81+F82+F13 -> 162 | I90: =+F8+F14+F15+F17+F18+F19+F20+F26+F30+F31+F35+F39+F40+F46+F47+F48+F49+F56+F57+F69+F70+F79+F83 -> 272 | J90: =+F16+F58+F59+F60+F61+F62+F71+F72+F63+F64+F65 -> 113 | K90: =+SUM(H90:J90) -> 547
E91: =+SUM(E88:E90) -> 358 | I91: =-F18-F19-F20 -> -6 | J91: puestos deslocalizados (Lugo, Ourense e Pontevedra)
I92: =+I90+I91 -> 266
I93: 1 | J93: VSM | K93: Nova creación

Sheet FERROL
B2: LOCALIDADE: FERROL
B4: CENTRO DE DESTINO: SERVIZO COMÚN DE TRAMITACIÓN DO TRIBUNAL DE INSTANCIA (SCT TI)
B5: COD | C5: DENOMINACIÓN DO POSTO | D5: DOTACIÓN V2 | E5: DOTACIÓN V3 | F5: DOTACIÓN V4 | G5: CXP | H5: CE | I5: TIPO DE POSTO | J5: CORPO | K5: FORMA DE PROVISIÓN | L5: REQUISITOS | M5: MÉRITOS | N5: OBS. | Q5: PLANTILLA ACTUAL
C6: EQUIPO CIVIL, FAMILIA, CONTENCIOSO - ADMINISTRATIVO E SOCIAL | Q6: CXPA | R6: CTPA | S6: CAX | T6: TOTAL
C7: Xestión - Xefatura de equipo SCT TI Civil, Familia, CA e Social | D7: 1 | E7: 1 | F7: 1 | G7: 4,199.16 | H7: 10,134.72 | I7: Sing. | J7: CXPA | K7: CE | M7: 1101, 1104, 1105, 1106, 1202, 2001, 3101, 3106, 3107, 4001 | P7: XDO. PRIM. INSTANCIA (6) | Q7: 14 | R7: 26 | S7: 7 | T7: =Q7+R7+S7 -> 47
C8: Xestión - SCT TI (Equipo Civil, Familia, CA e Social) | D8: 13 | E8: 13 | F8: 13 | G8: 4,199.16 | H8: 8,295.00 | I8: Xenér. | J8: CXPA | K8: CT | P8: XDO. CONT-ADTVO. (1) | Q8: 2 | R8: 2 | S8: 1 | T8: =Q8+R8+S8 -> 5
C9: Tramitación - SCT TI (Equipo Civil, Familia, CA e Social) | D9: 30 | E9: 29 | F9: 28 | G9: 3,570.00 | H9: 7,889.88 | I9: Xenér. | J9: CTPA | K9: CT | P9: XDO. SOCIAL (2) | Q9: 4 | R9: 8 | S9: 4 | T9: =Q9+R9+S9 -> 16
C10: EQUIPO PENAL | P10: XDO. PENAL (2) | Q10: 4 | R10: 8 | S10: 3 | T10: 15
C11: Xestión - Xefatura de equipo SCT TI Penal | D11: 1 | E11: 1 | F11: 1 | G11: 4,199.16 | H11: 10,134.72 | I11: Sing. | J11: CXPA | K11: CE | M11: 1102, 1104, 1202, 2001, 3102, 4001 | P11: XDO. INSTRUCIÓN (3) | Q11: 6 | R11: 12 | S11: 3 | T11: =Q11+R11+S11 -> 21
C12: Xestión - SCT TI (Equipo penal) | D12: 4 | E12: 4 | F12: 4 | G12: 4,199.16 | H12: 8,295.00 | I12: Xenér. | J12: CXPA | K12: CT | N12: GA | P12: DECANATO.SCA | Q12: 1 | R12: 4 | S12: 0 | T12: 5
C13: Xestión - SCT TI (Equipo penal) | D13: 2 | E13: 2 | F13: 2 | G13: 4,199.16 | H13: 8,570.64 | I13: Xenér. | J13: CXPA | K13: CT | N13: GA VSM | P13: DECANATO. NOTIFICACIÓNS E EMBARGOS | Q13: 4 | R13: 2 | S13: 6 | T13: 12
C14: Tramitación - SCT TI (Equipo penal) | D14: 8 | E14: 8 | F14: 8 | G14: 3,570.00 | H14: 7,889.88 | I14: Xenér. | J14: CTPA | K14: CT | N14: GA | P14: DECANATO PRI | Q14: 1 | R14: 3 | S14: 2 | T14: =Q14+R14+S14 -> 6
C15: Tramitación - SCT TI (Equipo penal) | D15: 8 | E15: 0 | F15: 1 | G15: 3,570.00 | H15: 7,889.88 | I15: Xenér. | J15: CTPA | K15: CT | P15: DECANATO. ATENCIÓN Á CIDADANÍA | Q15: 1 | R15: 1 | S15: 0 | T15: 2
C16: Tramitación - SCT TI (Equipo penal) | D16: 4 | E16: 4 | F16: 4 | G16: 3,570.00 | H16: 8,165.40 | I16: Xenér. | J16: CTPA | K16: CT | N16: GA VSM | P16: TOTAL | Q16: =SUM(Q7:Q15) -> 37 | R16: =SUM(R7:R15) -> 66 | S16: =SUM(S7:S15) -> 26 | T16: =SUM(T5:T15) -> 129
B18: CENTRO DE DESTINO: SERVIZO COMÚN XERAL (SCX) | P18: RC | Q18: 2 | R18: 3 | S18: 1
B19: COD | C19: DENOMINACIÓN DO POSTO | D19: DOTACIÓN V2 | E19: DOTACIÓN V3 | F19: DOTACIÓN V4 | G19: CXP | H19: CE | I19: TIPO DE POSTO | J19: CORPO | K19: FORMA DE PROVISIÓN | L19: REQUISITOS | M19: MÉRITOS | N19: OBS.
C20: Xestión - Adxunto/a á Dirección | D20: 1 | E20: 1 | F20: 1 | G20: 4,199.16 | H20: 10,441.68 | I20: Sing. | J20: CXPA | K20: CE | M20: 1101, 1102, 1104, 1105, 1106, 1108,1202, 2001, 3110, 3111, 3112, 4001 | Q20: =+Q16-Q18 -> 35 | R20: =+R16-R18 -> 63 | S20: 25 | T20: =+SUM(Q20:S20) -> 123
C21: Xestión - SCX | D21: 1 | E21: 1 | F21: 1 | G21: 4,199.16 | H21: 8,295.00 | I21: Xenér. | J21: CXPA | K21: CT
C22: Xestión - SCX | D22: 3 | E22: 3 | F22: 3 | G22: 4,199.16 | H22: 10,207.20 | I22: Xenér. | J22: CXPA | K22: CT | N22: Actos de comunicación
C23: Tramitación - Xefatura de equipo SCX | D23: 1 | E23: 1 | F23: 1 | G23: 3,570.00 | H23: 9,729.84 | I23: Sing. | J23: CTPA | K23: CE | M23: 1101, 1102, 1104, 1105, 1106, 1108, 1202, 3110, 3111, 3112, 4001
C24: Tramitación - SCX | D24: 3 | E24: 3 | F24: 3 | G24: 3,570.00 | H24: 7,889.88 | I24: Xenér. | J24: CTPA | K24: CT
C25: Tramitación - SCX | D25: 2 | E25: 2 | F25: 2 | G25: 3,570.00 | H25: 8,654.88 | I25: Xenér. | J25: CTPA | K25: CT | N25: Actos de comunicación
C26: Auxilio - Xefatura de equipo SCX | D26: 1 | E26: 1 | F26: 1 | G26: 2,682.48 | H26: 9,660.72 | I26: Sing. | J26: CAX | K26: CE | M26: 1104, 1108,1202, 3110, 3112, 3113, 4001
C27: Auxilio - Xefatura de equipo SCX | D27: 1 | E27: 1 | F27: 1 | G27: 2,682.48 | H27: 9,660.72 | I27: Sing. | J27: CAX | K27: CE | M27: 1104, 1108,1202, 3110, 3112, 3113, 4001
C28: Auxilio - SCX | D28: 2 | E28: 2 | F28: 2 | G28: 2,682.48 | H28: 7,820.76 | I28: Xenér. | J28: CAX | K28: CT | N28: GA
C29: Auxilio - SCX | D29: 1 | E29: 1 | F29: 1 | G29: 2,682.48 | H29: 8,096.28 | I29: Xenér. | J29: CAX | K29: CT | N29: GA VSM
C30: Auxilio - SCX | D30: 15 | E30: 15 | F30: 15 | G30: 2,682.48 | H30: 7,820.76 | I30: Xenér. | J30: CAX | K30: CT
C31: Auxilio - SCX | D31: 5 | E31: 5 | F31: 5 | G31: 2,682.48 | H31: 9,732.72 | I31: Xenér. | J31: CAX | K31: CT | N31: Actos de comunicación
B33: CENTRO DE DESTINO: SERVIZO COMÚN DE EXECUCIÓN (SCEX)
B34: COD | C34: DENOMINACIÓN DO POSTO | D34: DOTACIÓN V2 | E34: DOTACIÓN V3 | F34: DOTACIÓN V4 | G34: CXP | H34: CE | I34: TIPO DE POSTO | J34: CORPO | K34: FORMA DE PROVISIÓN | L34: REQUISITOS | M34: MÉRITOS | N34: OBS.
C35: Xestión - Xefatura de equipo SCEX | D35: 1 | E35: 1 | F35: 1 | G35: 4,199.16 | H35: 10,134.72 | I35: Sing. | J35: CXPA | K35: CE | M35: 1101, 1102, 1104, 1105, 1106, 1202, 2001, 3103, 3104, 3108, 3109, 4001
C36: Xestión - SCEX | D36: 8 | E36: 8 | F36: 8 | G36: 4,199.16 | H36: 8,295.00 | I36: Xenér. | J36: CXPA | K36: CT
C37: Tramitación - SCEX | D37: 16 | E37: 16 | F37: 16 | G37: 3,570.00 | H37: 7,889.88 | I37: Xenér. | J37: CTPA | K37: CT
G39: execucións: | H39: 3,470 | I39: =H39/SUM(F35:F37) -> 138.8 | J39: por funcionario
E41: SCT: | F41: SCT: | G41: =+SUM(F7:F16) -> 62 | H41: =+G41/$G$44 -> 63% | J41: PLANTILLA NOVA OFICINA
E42: SCX: | F42: SCX: | G42: =+SUM(F20:F25) -> 11 | H42: =+G42/$G$44 -> 11% | J42: CXPA | K42: CTPA | L42: CAX | M42: TOTAL
E43: SCEX: | F43: SCEX: | G43: =+SUM(F35:F37) -> 25 | H43: 26% | J43: =+F7+F8+F11+F12+F13+F20+F21+F22+F35+F36 -> 35 | K43: =+F9+F14+F16+F23+F24+F37+F25 -> 62 | L43: =+SUM(F26:F31) -> 25 | M43: =+SUM(J43:L43) -> 122
G44: =+SUM(G41:G43) -> 98

Sheet SANTIAGO DE COMPOSTELA
B2: LOCALIDADE: SANTIAGO DE COMPOSTELA | Q2: PLANTILLA ACTUAL
Q3: CXPA | R3: CTPA | S3: CAX | T3: TOTAL
B4: CENTRO DE DESTINO: SERVIZO COMÚN DE TRAMITACIÓN DO TRIBUNAL DE INSTANCIA (SCT TI) E SERVIZO COMÚN DE TRAMITACIÓN DA AUDIENCIA PROVINCIAL (SCT AP) | P4: AUD. PROVINCIAL (1) | Q4: 3 | R4: 5 | S4: 2 | T4: =Q4+R4+S4 -> 10
B5: COD | C5: DENOMINACIÓN DO POSTO | D5: DOTACIÓN V2 | E5: DOTACIÓN V3 | F5: DOTACIÓN V4 | G5: CXP | H5: CE | I5: TIPO DE POSTO | J5: CORPO | K5: FORMA DE PROVISIÓN | L5: REQUISITOS | M5: MÉRITOS | N5: OBS. | P5: XDO. PRIM. INSTANCIA (6) | Q5: 15 | R5: 26 | S5: 7 | T5: 48
C6: Xestión - SCT AP | D6: 3 | E6: 3 | F6: 3 | G6: 4,199.16 | H6: 8,295.00 | I6: Xenér. | J6: CXPA | K6: CT | P6: XDO. CONT-ADTVO. (2) | Q6: 4 | R6: 6 | S6: 2 | T6: =Q6+R6+S6 -> 12
C7: Tramitación - SCT AP | D7: 5 | E7: 5 | F7: 5 | G7: 3,570.00 | H7: 7,889.88 | I7: Xenér. | J7: CTPA | K7: CT | P7: XDO. SOCIAL (4) | Q7: 8 | R7: 16 | S7: 7 | T7: 31
C8: ÁREA CIVIL, SOCIAL, CONTENCIOSO - ADMINISTRATIVA, FAMILIA, INFANCIA E CAPACIDADE | P8: XDO. INSTRUCIÓN (3) | Q8: 6 | R8: 12 | S8: 3 | T8: 21
C9: Xestión - Xefatura de equipo SCT TI Civil, Familia, CA e Social | D9: 1 | E9: 1 | F9: 1 | G9: 4,199.16 | H9: 10,134.72 | I9: Sing. | J9: CXPA | K9: CE | M9: 1101, 1104, 1105, 1106, 1202, 2001, 3101, 3106, 3107, 4001 | P9: XDO. PENAL (2) | Q9: 4 | R9: 8 | S9: 4 | T9: 16
C10: Xestión - SCT TI Civil, Familia, CA e Social | D10: 18 | E10: 18 | F10: 19 | G10: 4,199.16 | H10: 8,295.00 | I10: Xenér. | J10: CXPA | K10: CT | P10: DECANATO.SCA | Q10: 4 | R10: 6 | S10: 1 | T10: 11
C11: Tramitación - SCT TI Civil, Familia, CA e Social | D11: 31 | E11: 31 | F11: 30 | G11: 3,570.00 | H11: 7,889.88 | I11: Xenér. | J11: CTPA | K11: CT | P11: DECANATO. NOTIFICACIÓNS E EMBARGOS | Q11: 6 | R11: 2 | S11: 3 | T11: 11
C12: ÁREA PENAL | P12: DECANATO PRI | Q12: 1 | R12: 3 | S12: 2 | T12: 6
C13: Xestión - Xefatura de equipo SCT TI Penal | D13: 1 | E13: 1 | F13: 1 | G13: 4,199.16 | H13: 10,134.72 | I13: Sing. | J13: CXPA | K13: CE | M13: 1102, 1104, 1202, 2001, 3102, 4001 | P13: DECANATO. ATENCIÓN Á CIDADANÍA | Q13: 1 | R13: 1 | S13: 0 | T13: 2
C14: Xestión - SCT TI Penal | D14: 6 | E14: 6 | F14: 6 | G14: 4,199.16 | H14: 8,295.00 | I14: Xenér. | J14: CXPA | K14: CT | N14: GA | P14: TOTAL | Q14: =SUM(Q3:Q13) -> 52 | R14: =SUM(R3:R13) -> 85 | S14: =SUM(S3:S13) -> 31 | T14: =SUM(T3:T13) -> 168
C15: Xestión - SCT TI Penal | D15: 2 | E15: 2 | F15: 2 | G15: 4,199.16 | H15: 8,570.64 | I15: Xenér. | J15: CXPA | K15: CT | N15: VSM
C16: Tramitación - SCT TI Penal | D16: 12 | E16: 12 | F16: 12 | G16: 3,570.00 | H16: 7,889.88 | I16: Xenér. | J16: CTPA | K16: CT | N16: GA | P16: RC: | Q16: 2 | R16: 3 | S16: 1
C17: Tramitación - SCT TI Penal | D17: 4 | E17: 3 | F17: 4 | G17: 3,570.00 | H17: 7,889.88 | I17: Xenér. | J17: CTPA | K17: CT
C18: Tramitación - SCT TI Penal | D18: 4 | E18: 5 | F18: 6 | G18: 3,570.00 | H18: 8,165.40 | I18: Xenér. | J18: CTPA | K18: CT | N18: VSM | Q18: =+Q14-Q16 -> 50 | R18: =+R14-R16 -> 82 | S18: 30 | T18: =+SUM(Q18:S18) -> 162
B20: CENTRO DE DESTINO: SERVIZO COMÚN XERAL (SCX)
B21: COD | C21: DENOMINACIÓN DO POSTO | D21: DOTACIÓN V2 | E21: DOTACIÓN V3 | F21: DOTACIÓN V4 | G21: CXP | H21: CE | I21: TIPO DE POSTO | J21: CORPO | K21: FORMA DE PROVISIÓN | L21: REQUISITOS | M21: MÉRITOS | N21: OBS.
C22: ÁREA REXISTRO-REPARTICIÓN E ASUNTOS XERAIS
C23: Xestión - Xefatura de Área Rexistro - Repartición e Asuntos Xerais | D23: 1 | E23: 1 | F23: 1 | G23: 4,199.16 | H23: 10,441.68 | I23: Sing. | J23: CXPA | K23: CE | M23: 1101, 1102, 1104, 1105, 1106, 1108, 1202, 2001, 3110, 3111, 4001
C24: Xestión - Rexistro - Repartición e Asuntos Xerais | D24: 2 | E24: 2 | F24: 1 | G24: 4,199.16 | H24: 8,295.00 | I24: Xenér. | J24: CXPA | K24: CT
C25: Tramitación - Xefatura de equipo Rexistro - Repartición e Asuntos Xerais | D25: 1 | E25: 1 | F25: 1 | G25: 3,570.00 | H25: 9,729.84 | I25: Sing. | J25: CTPA | K25: CE | M25: 1101, 1102, 1104, 1105, 1106, 1202, 3110, 3111, 4001
C26: Tramitación - Rexistro - Repartición e Asuntos Xerais | D26: 3 | E26: 3 | F26: 3 | G26: 3,570.00 | H26: 7,889.88 | I26: Xenér. | J26: CTPA | K26: CT
C27: Auxilio - Xefatura de equipo Rexistro - Repartición e Asuntos Xerais | D27: 1 | E27: 1 | F27: 1 | G27: 2,682.48 | H27: 9,660.72 | I27: Sing. | J27: CAX | K27: CE | M27: 1104, 1202, 3110, 3113, 4001
C28: Auxilio - Rexistro - Repartición e Asuntos Xerais | D28: 3 | E28: 3 | F28: 3 | G28: 2,682.48 | H28: 7,820.76 | I28: Xenér. | J28: CAX | K28: CT | N28: GA
C29: Auxilio - Rexistro - Repartición e Asuntos Xerais | D29: 1 | E29: 1 | F29: 1 | G29: 2,682.48 | H29: 8,096.28 | I29: Xenér. | J29: CAX | K29: CT | N29: VSM
C30: Auxilio - Rexistro - Repartición e Asuntos Xerais | D30: 22 | E30: 22 | F30: 22 | G30: 2,682.48 | H30: 7,820.76 | I30: Xenér. | J30: CAX | K30: CT
C31: ÁREA ACTOS DE COMUNICACIÓN
C32: Xestión - Xefatura de Área - Actos de Comunicación | D32: 1 | E32: 1 | F32: 1 | G32: 4,199.16 | H32: 12,353.88 | I32: Sing. | J32: CXPA | K32: CE | M32: 1101, 1102, 1104, 1105, 1106, 1108,1202, 2001, 3112, 4001
C33: Xestión - Actos de Comunicación | D33: 5 | E33: 5 | F33: 5 | G33: 4,199.16 | H33: 10,207.20 | I33: Xenér. | J33: CXPA | K33: CT
C34: Tramitación - Actos de Comunicación | D34: 2 | E34: 2 | F34: 2 | G34: 3,570.00 | H34: 8,654.88 | I34: Xenér. | J34: CTPA | K34: CT
C35: Auxilio - Xefatura de equipo - Actos de Comunicación | D35: 1 | E35: 1 | F35: 1 | G35: 2,682.48 | H35: 11,572.68 | I35: Sing. | J35: CAX | K35: CE | M35: 1104, 1108, 1202, 3112, 4001
C36: Auxilio - Actos de Comunicación | D36: 2 | E36: 2 | F36: 2 | G36: 2,682.48 | H36: 9,732.72 | I36: Xenér. | J36: CAX | K36: CT
B38: CENTRO DE DESTINO: SERVIZO COMÚN DE EXECUCIÓN (SCEX)
B39: COD | C39: DENOMINACIÓN DO POSTO | D39: DOTACIÓN V2 | E39: DOTACIÓN V3 | F39: DOTACIÓN V4 | G39: CXP | H39: CE | I39: TIPO DE POSTO | J39: CORPO | K39: FORMA DE PROVISIÓN | L39: REQUISITOS | M39: MÉRITOS | N39: OBS.
C40: ÁREA CIVIL, SOCIAL, CONTENCIOSO - ADMINISTRATIVA, FAMILIA, INFANCIA E CAPACIDADE
C41: Xestión - Xefatura de equipo SCEX Civil, Familia, Mercantil, CA e Social | D41: 1 | E41: 1 | F41: 1 | G41: 4,199.16 | H41: 10,134.72 | I41: Sing. | J41: CXPA | K41: CE | M41: 1101, 1104, 1105, 1106, 1202, 2001, 3103, 3108, 3109, 4001
C42: Xestión - SCEX Civil, Familia, Mercantil, CA e Social | D42: 6 | E42: 6 | F42: 6 | G42: 4,199.16 | H42: 8,295.00 | I42: Xenér. | J42: CXPA | K42: CT
C43: Tramitación - SCEX Civil, Familia, Mercantil, CA e Social | D43: 14 | E43: 14 | F43: 14 | G43: 3,570.00 | H43: 7,889.88 | I43: Xenér. | J43: CTPA | K43: CT
C44: ÁREA PENAL
C45: Xestión - Xefatura de equipo SCEX Penal | D45: 1 | E45: 1 | F45: 1 | G45: 4,199.16 | H45: 10,134.72 | I45: Sing. | J45: CXPA | K45: CE | M45: 1102, 1104, 1202, 2001, 3104, 4001
C46: Xestión - SCEX Penal | D46: 2 | E46: 2 | F46: 2 | G46: 4,199.16 | H46: 8,295.00 | I46: Xenér. | J46: CXPA | K46: CT
C47: Tramitación - SCEX Penal | D47: 6 | E47: 6 | F47: 6 | G47: 3,570.00 | H47: 7,889.88 | I47: Xenér. | J47: CTPA | K47: CT
G49: Ex civil: | H49: 2,324 | I49: =+H49/SUM(F41:F43) -> 110.7 | J49: por funcionario
G50: Ex penal: | H50: 1,365 | I50: =+H50/SUM(F45:F47) -> 151.7 | J50: por funcionario
F52: SCT: | G52: =+SUM(F6:F18) -> 89 | H52: =+G52/$G$55 -> 67% | J52: PLANTILLA NOVA OFICINA
F53: SCX: | G53: =+SUM(F23:F26)+SUM(F32:F34) -> 14 | H53: =+G53/$G$55 -> 11% | J53: CXPA | K53: CTPA | L53: CAX | M53: TOTAL
F54: SCEX: | G54: =+SUM(F41:F47) -> 30 | H54: 23% | J54: =+F6+F9+F10+F13+F14+F15+F23+F24+F32+F33+F41+F42+F45+F46 -> 50 | K54: =+F7+F11+F16+F17+F18+F25+F34+F43+F47+F26 -> 83 | L54: =+SUM(F27:F30)+SUM(F35:F36) -> 30 | M54: =+SUM(J54:L54) -> 163
G55: =+SUM(G52:G54) -> 133
K56: 1 NOVA PRAZA VSM

Sheet LUGO
B2: LOCALIDADE: LUGO
B4: CENTRO DE DESTINO: SERVIZO COMÚN DE TRAMITACIÓN DO TRIBUNAL DE INSTANCIA (SCT TI) E SERVIZO COMÚN DE TRAMITACIÓN DA AUDIENCIA PROVINCIAL (SCT AP) | Q4: PLANTILLA ACTUAL
B5: COD | C5: DENOMINACIÓN DO POSTO | D5: DOTACIÓN V2 | E5: DOTACIÓN V3 | F5: DOTACIÓN V4 | G5: CXP | H5: CE | I5: TIPO DE POSTO | J5: CORPO | K5: FORMA DE PROVISIÓN | L5: REQUISITOS | M5: MÉRITOS | N5: OBS. | Q5: CXPA | R5: CTPA | S5: CAX | T5: TOTAL
C6: Xestión - SCT AP | D6: 3 | E6: 3 | F6: 3 | G6: 4,199.16 | H6: 8,295.00 | I6: Xenér. | J6: CXPA | K6: CT | P6: AUD. PROVINCIAL (2 + Secretaría) | Q6: 4 | R6: 8 | S6: 4 | T6: =Q6+R6+S6 -> 16
C7: Tramitación - SCT AP | D7: 6 | E7: 6 | F7: 6 | G7: 3,570.00 | H7: 7,889.88 | I7: Xenér. | J7: CTPA | K7: CT | P7: XDO. PRIM. INSTANCIA (6) | Q7: 15 | R7: 26 | S7: 7 | T7: =Q7+R7+S7 -> 48
C8: ÁREA CIVIL, SOCIAL, CONTENCIOSO - ADMINISTRATIVA, FAMILIA, INFANCIA E CAPACIDADE E MERCANTIL | P8: XDO. CONT-ADTVO. (2) | Q8: 4 | R8: 6 | S8: 2 | T8: =Q8+R8+S8 -> 12
C9: Xestión - Xefatura de equipo SCT TI Civil, Familia, Mercantil, CA e Social | D9: 1 | E9: 1 | F9: 1 | G9: 4,199.16 | H9: 10,134.72 | I9: Sing. | J9: CXPA | K9: CE | M9: 1101, 1104, 1105, 1106, 1202, 2001, 3101, 3106, 3107, 4001 | P9: XDO. SOCIAL (4) | Q9: 8 | R9: 16 | S9: 8 | T9: =Q9+R9+S9 -> 32
C10: Xestión - SCT TI Civil, Familia, Mercantil, CA e Social | D10: 14 | E10: 14 | F10: 14 | G10: 4,199.16 | H10: 8,295.00 | I10: Xenér. | J10: CXPA | K10: CT | P10: XDO. INSTRUCCIÓN (3) | Q10: 6 | R10: 12 | S10: 3 | T10: 21
C11: Tramitación - SCT TI Civil, Familia, Mercantil, CA e Social | D11: 35 | E11: 34 | F11: 32 | G11: 3,570.00 | H11: 7,889.88 | I11: Xenér. | J11: CTPA | K11: CT | P11: XDO. PENAL (2) | Q11: 4 | R11: 8 | S11: 4 | T11: 16
C12: ÁREA PENAL | P12: XDO. MENORES (1) | Q12: 1 | R12: 1 | S12: 1 | T12: 3
C13: Xestión - Xefatura de equipo SCT TI Penal | D13: 1 | E13: 1 | F13: 1 | G13: 4,199.16 | H13: 10,134.72 | I13: Sing. | J13: CXPA | K13: CE | M13: 1102, 1104, 1202, 2001, 3102, 4001 | P13: XDO. VIXILANCIA PENITENCIARIA (1) | Q13: 2 | R13: 2 | S13: 1 | T13: 5
C14: Xestión - SCT TI Penal | D14: 4 | E14: 4 | F14: 4 | G14: 4,199.16 | H14: 8,295.00 | I14: Xenér. | J14: CXPA | K14: CT | N14: GA | P14: DECANATO.SCA | Q14: 6 | R14: 4 | S14: 0 | T14: =Q14+R14+S14 -> 10
C15: Xestión - SCT TI Penal | D15: 2 | E15: 2 | F15: 2 | G15: 4,199.16 | H15: 8,570.64 | I15: Xenér. | J15: CXPA | K15: CT | N15: GA VSM | P15: DECANATO. NOTIFICACIÓNS E EMBARGOS | Q15: 4 | R15: 2 | S15: 6 | T15: =Q15+R15+S15 -> 12
C16: Xestión - SCT TI Penal | D16: 4 | E16: 4 | F16: 4 | G16: 4,199.16 | H16: 8,295.00 | I16: Xenér. | J16: CXPA | K16: CT | P16: DECANATO PRI | Q16: 1 | R16: 4 | S16: 1 | T16: 6
C17: Tramitación - SCT TI Penal | D17: 8 | E17: 8 | F17: 8 | G17: 3,570.00 | H17: 7,889.88 | I17: Xenér. | J17: CTPA | K17: CT | N17: GA | P17: DECANATO. ATENCIÓN CIDADANÍA | Q17: 1 | R17: 1 | S17: 0 | T17: 2
C18: Tramitación - SCT TI Penal | D18: 4 | E18: 4 | F18: 4 | G18: 3,570.00 | H18: 8,165.40 | I18: Xenér. | J18: CTPA | K18: CT | N18: GA VSM | P18: TOTAL | Q18: =SUM(Q6:Q17) -> 56 | R18: =SUM(R6:R17) -> 90 | S18: =SUM(S6:S17) -> 37 | T18: =SUM(T6:T17) -> 183
C19: Tramitación - SCT TI Penal | D19: 6 | E19: 6 | F19: 6 | G19: 3,570.00 | H19: 7,889.88 | I19: Xenér. | J19: CTPA | K19: CT
P20: RC: | Q20: 2 | R20: 3 | S20: 1
B21: CENTRO DE DESTINO: SERVIZO COMÚN XERAL (SCX)
B22: COD | C22: DENOMINACIÓN DO POSTO | D22: DOTACIÓN V2 | E22: DOTACIÓN V3 | F22: DOTACIÓN V4 | G22: CXP | H22: CE | I22: TIPO DE POSTO | J22: CORPO | K22: FORMA DE PROVISIÓN | L22: REQUISITOS | M22: MÉRITOS | N22: OBS. | Q22: =+Q18-Q20 -> 54 | R22: =+R18-R20 -> 87 | S22: =+S18-S20 -> 36 | T22: =+SUM(Q22:S22) -> 177
C23: ÁREA REXISTRO - REPARTICIÓN E ASUNTOS XERAIS | P23: Prazas amortizables eliminadas:
C24: Xestión - Xefatura de Área Rexistro - Repartición e Asuntos Xerais | D24: 1 | E24: 1 | F24: 1 | G24: 4,199.16 | H24: 10,441.68 | I24: Sing. | J24: CXPA | K24: CE | M24: 1101, 1102, 1104, 1105, 1106, 1108, 1202, 2001, 3110, 3111, 4001 | P24: Xdo. Cont-Adtvo. 2: 1 CTPA
C25: Xestión - Rexistro - Repartición e Asuntos Xerais | D25: 3 | E25: 3 | F25: 2 | G25: 4,199.16 | H25: 8,295.00 | I25: Xenér. | J25: CXPA | K25: CT
C26: Tramitación - Xefatura de equipo Rexistro - Repartición e Asuntos Xerais | D26: 1 | E26: 1 | F26: 1 | G26: 3,570.00 | H26: 9,729.84 | I26: Sing. | J26: CTPA | K26: CE | M26: 1101, 1102, 1104, 1105, 1106, 1202, 3110, 3111, 4001
C27: Tramitación - Rexistro - Repartición e Asuntos Xerais | D27: 3 | E27: 3 | F27: 6 | G27: 3,570.00 | H27: 7,889.88 | I27: Xenér. | J27: CTPA | K27: CT
C28: Auxilio - Xefatura de equipo Rexistro - Repartición e Asuntos Xerais | D28: 1 | E28: 1 | F28: 1 | G28: 2,682.48 | H28: 9,660.72 | I28: Sing. | J28: CAX | K28: CE | M28: 1104, 1202, 3110, 3113, 4001
C29: Auxilio - Rexistro - Repartición e Asuntos Xerais | D29: 2 | E29: 2 | F29: 2 | G29: 2,682.48 | H29: 7,820.76 | I29: Xenér. | J29: CAX | K29: CT | N29: GA
C30: Auxilio - Rexistro - Repartición e Asuntos Xerais | D30: 1 | E30: 1 | F30: 1 | G30: 2,682.48 | H30: 8,096.28 | I30: Xenér. | J30: CAX | K30: CT | N30: GA VSM
C31: Auxilio - Rexistro - Repartición e Asuntos Xerais | D31: 25 | E31: 25 | F31: 24 | G31: 2,682.48 | H31: 7,820.76 | I31: Xenér. | J31: CAX | K31: CT
C32: ÁREA ACTOS DE COMUNICACIÓN
C33: Xestión - Xefatura de Área Actos de Comunicación | D33: 1 | E33: 1 | F33: 1 | G33: 4,199.16 | H33: 12,353.88 | I33: Sing. | J33: CXPA | K33: CE | M33: 1101, 1102, 1104, 1105, 1106, 1108,1202, 2001, 3112, 4001
C34: Xestión - Actos de Comunicación | D34: 1 | E34: 1 | F34: 1 | G34: 4,199.16 | H34: 10,207.20 | I34: Xenér. | J34: CXPA | K34: CT
C35: Tramitación - Actos de Comunicación | D35: 2 | E35: 2 | F35: 2 | G35: 3,570.00 | H35: 8,654.88 | I35: Xenér. | J35: CTPA | K35: CT
C36: Auxilio - Xefatura de equipo Actos de Comunicación | D36: 1 | E36: 1 | F36: 1 | G36: 2,682.48 | H36: 11,572.68 | I36: Sing. | J36: CAX | K36: CE | M36: 1104, 1108, 1202, 3112, 4001
C37: Auxilio - Actos de Comunicación | D37: 6 | E37: 6 | F37: 7 | G37: 2,682.48 | H37: 9,732.72 | I37: Xenér. | J37: CAX | K37: CT
B39: CENTRO DE DESTINO: SERVIZO COMÚN DE EXECUCIÓN (SCEX)
B40: COD | C40: DENOMINACIÓN DO POSTO | D40: DOTACIÓN V2 | E40: DOTACIÓN V3 | F40: DOTACIÓN V4 | G40: CXP | H40: CE | I40: TIPO DE POSTO | J40: CORPO | K40: FORMA DE PROVISIÓN | L40: REQUISITOS | M40: MÉRITOS | N40: OBS.
C41: ÁREA CIVIL, SOCIAL, CONTENCIOSO - ADMINISTRATIVA, FAMILIA, INFANCIA E CAPACIDADE E MERCANTIL
C42: Xestión - Xefatura de equipo SCEX Civil, Familia, Mercantil, CA e Social | D42: 1 | E42: 1 | F42: 1 | G42: 4,199.16 | H42: 10,134.72 | I42: Sing. | J42: CXPA | K42: CE | M42: 1101, 1104, 1105, 1106, 1202, 2001, 3103, 3108, 3109, 4001
C43: Xestión - SCEX Civil, Familia, Mercantil, CA e Social | D43: 12 | E43: 12 | F43: 12 | G43: 4,199.16 | H43: 8,295.00 | I43: Xenér. | J43: CXPA | K43: CT
C44: Tramitación - SCEX Civil, Familia, Mercantil, CA e Social | D44: 11 | E44: 11 | F44: 12 | G44: 3,570.00 | H44: 7,889.88 | I44: Xenér. | J44: CTPA | K44: CT
C45: ÁREA PENAL
C46: Xestión - Xefatura de equipo SCEX Penal | D46: 1 | E46: 1 | F46: 1 | G46: 4,199.16 | H46: 10,134.72 | I46: Sing. | J46: CXPA | K46: CE | M46: 1102, 1104, 1202, 2001, 3104, 4001
C47: Xestión - SCEX Penal | D47: 5 | E47: 5 | F47: 6 | G47: 4,199.16 | H47: 8,295.00 | I47: Xenér. | J47: CXPA | K47: CT
C48: Tramitación - SCEX Penal | D48: 10 | E48: 10 | F48: 8 | G48: 3,570.00 | H48: 7,889.88 | I48: Xenér. | J48: CTPA | K48: CT
I50: Ex civil: | J50: 2,292 | K50: =J50/SUM(F42:F44) -> 91.7 | L50: por funcionario
I51: Ex penal: | J51: 1,550 | K51: =J51/SUM(F46:F48) -> 103.3 | L51: por funcionario
F53: SCT: | G53: =+SUM(F6:F19) -> 85 | H53: =+G53/$G$56 -> 64% | J53: PLANTILLA NOVA OFICINA
F54: SCX: | G54: =+SUM(F24:F26)+SUM(F33:F35) -> 8 | H54: =+G54/$G$56 -> 6% | J54: CXPA | K54: CTPA | L54: CAX | M54: TOTAL
F55: SCEX: | G55: =+SUM(F42:F48) -> 40 | H55: 30% | J55: =+F6+F9+F10+F13+F14+F15+F16+F24+F25+F33+F34+F42+F43+F46+F47 -> 54 | K55: =+F7+F11+F17+F18+F19+F26+F27+F35+F44+F48 -> 85 | L55: =+F28+F29+F30+F31+F36+F37 -> 36 | M55: =+SUM(J55:L55) -> 175
G56: =+SUM(G53:G55) -> 133 | K56: 2 SG

Sheet OURENSE
B2: LOCALIDADE: OURENSE
B4: CENTRO DE DESTINO: SERVIZO COMÚN DE TRAMITACIÓN DO TRIBUNAL DE INSTANCIA (SCT TI) E SERVIZO COMÚN DE TRAMITACIÓN DA AUDIENCIA PROVINCIAL (SCT AP) | Q4: PLANTILLA ACTUAL
B5: COD | C5: DENOMINACIÓN DO POSTO | D5: DOTACIÓN V2 | E5: DOTACIÓN V3 | F5: DOTACIÓN V4 | G5: CXP | H5: CE | I5: TIPO DE POSTO | J5: CORPO | K5: FORMA DE PROVISIÓN | L5: REQUISITOS | M5: MÉRITOS | N5: OBS. | Q5: CXPA | R5: CTPA | S5: CAX | T5: TOTAL
C6: Xestión - SCT AP | D6: 2 | E6: 2 | F6: 2 | G6: 4,199.16 | H6: 8,295.00 | I6: Xenér. | J6: CXPA | K6: CT | P6: AUD. PROVINCIAL (2 + Secretaría) | Q6: 4 | R6: 9 | S6: 3 | T6: =Q6+R6+S6 -> 16
C7: Tramitación - SCT AP | D7: 5 | E7: 5 | F7: 5 | G7: 3,570.00 | H7: 7,889.88 | I7: Xenér. | J7: CTPA | K7: CT | P7: XDO. PRIM. INSTANCIA (7) | Q7: 18 | R7: 30 | S7: 8 | T7: 56
C8: ÁREA CIVIL, SOCIAL, CONTENCIOSO - ADMINISTRATIVA, FAMILIA, INFANCIA E CAPACDIADE E MERCANTIL | P8: XDO. CONT-ADTVO. (2) | Q8: 4 | R8: 6 | S8: 2 | T8: =Q8+R8+S8 -> 12
C9: Xestión - Xefatura de equipo SCT TI Civil, Familia, Mercantil, CA e Social | D9: 1 | E9: 1 | F9: 1 | G9: 4,199.16 | H9: 10,134.72 | I9: Sing. | J9: CXPA | K9: CE | M9: 1101, 1104, 1105, 1106, 1202, 2001, 3101, 3106, 3107, 4001 | P9: XDO. SOCIAL (4) | Q9: 8 | R9: 15 | S9: 7 | T9: =Q9+R9+S9 -> 30
C10: Xestión - SCT TI Civil, Familia, Mercantil, CA e Social | D10: 19 | E10: 19 | F10: 17 | G10: 4,199.16 | H10: 8,295.00 | I10: Xenér. | J10: CXPA | K10: CT | P10: XDO. INSTRUCIÓN (3) | Q10: 6 | R10: 12 | S10: 3 | T10: 21
C11: Tramitación - SCT TI Civil, Familia, Mercantil, CA e Social | D11: 35 | E11: 34 | F11: 30 | G11: 3,570.00 | H11: 7,889.88 | I11: Xenér. | J11: CTPA | K11: CT | P11: XDO. PENAL (2) | Q11: 4 | R11: 8 | S11: 4 | T11: 16
C12: ÁREA PENAL | P12: XDO. MENORES (1) | Q12: 1 | R12: 1 | S12: 1 | T12: 3
C13: Xestión - Xefatura de equipo SCT TI Penal | D13: 1 | E13: 1 | F13: 1 | G13: 4,199.16 | H13: 10,134.72 | I13: Sing. | J13: CXPA | K13: CE | M13: 1102, 1104, 1202, 2001, 3102, 4001 | P13: DECANATO.SCA | Q13: 1 | R13: 7 | S13: 2 | T13: =Q13+R13+S13 -> 10
C14: Xestión - SCT TI Penal | D14: 6 | E14: 6 | F14: 6 | G14: 4,199.16 | H14: 8,295.00 | I14: Xenér. | J14: CXPA | K14: CT | N14: GA | P14: DECANATO. NOTIFICACIÓNS E EMBARGOS | Q14: 4 | R14: 2 | S14: 6 | T14: =Q14+R14+S14 -> 12
C15: Xestión - SCT TI Penal | D15: 2 | E15: 2 | F15: 2 | G15: 4,199.16 | H15: 8,570.64 | I15: Xenér. | J15: CXPA | K15: CT | N15: VSM | P15: DECANATO PRI | Q15: 1 | R15: 4 | S15: 1 | T15: 6
C16: Tramitación - SCT TI Penal | D16: 12 | E16: 12 | F16: 12 | G16: 3,570.00 | H16: 7,889.88 | I16: Xenér. | J16: CTPA | K16: CT | N16: GA | P16: DECANATO. ATENCIÓN Á CIDADANÍA | Q16: 1 | R16: 1 | S16: 0 | T16: 2
C17: Tramitación - SCT TI Penal | D17: 4 | E17: 5 | F17: 6 | G17: 3,570.00 | H17: 8,165.40 | I17: Xenér. | J17: CTPA | K17: CT | N17: VSM | P17: TOTAL | Q17: =SUM(Q6:Q16) -> 52 | R17: =SUM(R6:R16) -> 95 | S17: =SUM(S6:S16) -> 37 | T17: =SUM(T6:T16) -> 184
B19: CENTRO DE DESTINO: SERVIZO COMÚN XERAL (SCX) | P19: RC: | Q19: 2 | R19: 3 | S19: 1
B20: COD | C20: DENOMINACIÓN DO POSTO | D20: DOTACIÓN V2 | E20: DOTACIÓN V3 | F20: DOTACIÓN V4 | G20: CXP | H20: CE | I20: TIPO DE POSTO | J20: CORPO | K20: FORMA DE PROVISIÓN | L20: REQUISITOS | M20: MÉRITOS | N20: OBS. | Q20: =+Q17-Q19 -> 50 | R20: =+R17-R19 -> 92 | S20: =+S17-S19 -> 36 | T20: =+SUM(Q20:S20) -> 178
C21: ÁREA REXISTRO - REPARTICIÓN E ASUNTOS XERAIS | P21: Prazas amortizables eliminadas:
C22: Xestión - Xefatura de Área Rexistro - Repartición e Asuntos Xerais | D22: 1 | E22: 1 | F22: 1 | G22: 4,199.16 | H22: 10,441.68 | I22: Sing. | J22: CXPA | K22: CE | M22: 1101, 1102, 1104, 1105, 1106, 1108, 1202, 2001, 3110, 3111, 4001 | P22: AUD.PROV. SECCION N. 1 OURENSE: 1 CAX
C23: Xestión - Rexistro - Repartición e Asuntos Xerais | D23: 2 | E23: 2 | F23: 2 | G23: 4,199.16 | H23: 8,295.00 | I23: Xenér. | J23: CXPA | K23: CT | P23: XDO.CONT-ADTVO N.1 OURENSE: 1 CTPA
C24: Tramitación - Xefatura de equipo Rexistro - Repartición e Asuntos Xerais | D24: 1 | E24: 1 | F24: 1 | G24: 3,570.00 | H24: 9,729.84 | I24: Sing. | J24: CTPA | K24: CE | M24: 1101, 1102, 1104, 1105, 1106, 1202, 3110, 3111, 4001
C25: Tramitación - Rexistro - Repartición e Asuntos Xerais | D25: 5 | E25: 5 | F25: 5 | G25: 3,570.00 | H25: 7,889.88 | I25: Xenér. | J25: CTPA | K25: CT
C26: Auxilio - Xefatura de equipo Rexistro - Repartición e Asuntos Xerais | D26: 1 | E26: 1 | F26: 1 | G26: 2,682.48 | H26: 9,660.72 | I26: Sing. | J26: CAX | K26: CE | M26: 1104, 1202, 3110, 3113, 4001
C27: Auxilio - Rexistro - Repartición e Asuntos Xerais | D27: 3 | E27: 3 | F27: 3 | G27: 2,682.48 | H27: 7,820.76 | I27: Xenér. | J27: CAX | K27: CT | N27: GA
C28: Auxilio - Rexistro - Repartición e Asuntos Xerais | D28: 1 | E28: 1 | F28: 1 | G28: 2,682.48 | H28: 8,096.28 | I28: Xenér. | J28: CAX | K28: CT | N28: VSM
C29: Auxilio - Rexistro - Repartición e Asuntos Xerais | D29: 25 | E29: 25 | F29: 25 | G29: 2,682.48 | H29: 7,820.76 | I29: Xenér. | J29: CAX | K29: CT
C30: ÁREA ACTOS DE COMUNICACIÓN
C31: Xestión - Xefatura de Área Actos de Comunicación | D31: 1 | E31: 1 | F31: 1 | G31: 4,199.16 | H31: 12,353.88 | I31: Sing. | J31: CXPA | K31: CE | M31: 1101, 1102, 1104, 1105, 1106, 1108,1202, 2001, 3112, 4001
C32: Xestión - Actos de Comunicación | D32: 3 | E32: 3 | F32: 3 | G32: 4,199.16 | H32: 10,207.20 | I32: Xenér. | J32: CXPA | K32: CT
C33: Tramitación - Actos de Comunicación | D33: 1 | E33: 1 | F33: 1 | G33: 3,570.00 | H33: 8,654.88 | I33: Xenér. | J33: CTPA | K33: CT
C34: Auxilio - Xefatura de equipo Actos de Comunicación | D34: 1 | E34: 1 | F34: 1 | G34: 2,682.48 | H34: 11,572.68 | I34: Sing. | J34: CAX | K34: CE | M34: 1104, 1108, 1202, 3112, 4001
C35: Auxilio - Actos de Comunicación | D35: 5 | E35: 5 | F35: 5 | G35: 2,682.48 | H35: 9,732.72 | I35: Xenér. | J35: CAX | K35: CT
B37: CENTRO DE DESTINO: SERVIZO COMÚN DE EXECUCIÓN (SCEX)
B38: COD | C38: DENOMINACIÓN DO POSTO | D38: DOTACIÓN V2 | E38: DOTACIÓN V3 | F38: DOTACIÓN V4 | G38: CXP | H38: CE | I38: TIPO DE POSTO | J38: CORPO | K38: FORMA DE PROVISIÓN | L38: REQUISITOS | M38: MÉRITOS | N38: OBS.
C39: ÁREA CIVIL, SOCIAL, CONTENCIOSO - ADMINISTRATIVA, FAMILIA, INFANCIA E CAPACIDADE E MERCANTIL
C40: Xestión - Xefatura de equipo SCEX Civil, Familia, Mercantil, CA e Social | D40: 1 | E40: 1 | F40: 1 | G40: 4,199.16 | H40: 10,134.72 | I40: Sing. | J40: CXPA | K40: CE | M40: 1101, 1104, 1105, 1106, 1202, 2001, 3103, 3108, 3109, 4001
C41: Xestión - SCEX Civil, Familia, Mercantil, CA e Social | D41: 7 | E41: 7 | F41: 9 | G41: 4,199.16 | H41: 8,295.00 | I41: Xenér. | J41: CXPA | K41: CT
C42: Tramitación - SCEX Civil, Familia, Mercantil, CA e Social | D42: 18 | E42: 18 | F42: 21 | G42: 3,570.00 | H42: 7,889.88 | I42: Xenér. | J42: CTPA | K42: CT
C43: ÁREA PENAL
C44: Xestión - Xefatura de equipo SCEX Penal | D44: 1 | E44: 1 | F44: 1 | G44: 4,199.16 | H44: 10,134.72 | I44: Sing. | J44: CXPA | K44: CE | M44: 1102, 1104, 1202, 2001, 3104, 4001
C45: Xestión - SCEX Penal | D45: 3 | E45: 3 | F45: 3 | G45: 4,199.16 | H45: 8,295.00 | I45: Xenér. | J45: CXPA | K45: CT
C46: Tramitación - SCEX Penal | D46: 10 | E46: 10 | F46: 10 | G46: 3,570.00 | H46: 7,889.88 | I46: Xenér. | J46: CTPA | K46: CT
E48: Ex civil: | F48: 2,521 | G48: =+F48/SUM(F40:F42) -> 81.3 | H48: por funcionario
E49: Ex penal: | F49: 1,532 | G49: =+F49/SUM(F44:F46) -> 109.4 | H49: por funcionario
E51: SCT: | F51: =+SUM(F6:F17) -> 82 | G51: =+F51/$F$54 -> 58% | I51: PLANTILLA NOVA OFICINA
E52: SCX: | F52: =+SUM(F22:F25)+SUM(F31:F33) -> 14 | G52: =+F52/$F$54 -> 10% | I52: CXPA | J52: CTPA | K52: CAX | L52: TOTAL
E53: SCEX: | F53: =+SUM(F40:F46) -> 45 | G53: 32% | I53: =+F6+F9+F10+F13+F14+F15+F22+F23+F31+F32+F40+F41+F44+F45 -> 50 | J53: =+F7+F11+F16+F17+F24+F25+F33+F42+F46 -> 91 | K53: =+F26+F27+F28+F29+F34+F35 -> 36 | L53: =+SUM(I53:K53) -> 177
F54: =+SUM(F51:F53) -> 141 | J54: 2 | K54: SG
J55: 1 | K55: VSM Nova creación

Sheet PONTEVEDRA
B2: LOCALIDADE: PONTEVEDRA
B4: CENTRO DE DESTINO: SERVIZO COMÚN DE TRAMITACIÓN DO TRIBUNAL DE INSTANCIA (SCT TI) E SERVIZO COMÚN DE TRAMITACIÓN DA AUDIENCIA PROVINCIAL (SCT AP)
B5: COD | C5: DENOMINACIÓN DO POSTO | D5: DOTACIÓN V2 | E5: DOTACIÓN V3 | F5: DOTACIÓN V4 | G5: CXP | H5: CE | I5: TIPO DE POSTO | J5: CORPO | K5: FORMA DE PROVISIÓN | L5: REQUISITOS | M5: MÉRITOS | N5: OBS. | Q5: PLANTILLA ACTUAL
C6: Xestión - SCT AP | D6: 10 | E6: 10 | F6: 8 | G6: 4,199.16 | H6: 8,295.00 | I6: Xenér. | J6: CXPA | K6: CT | Q6: CXPA | R6: CTPA | S6: CAX | T6: TOTAL
C7: Tramitación - SCT AP | D7: 14 | E7: 14 | F7: 14 | G7: 3,570.00 | H7: 7,889.88 | I7: Xenér. | J7: CTPA | K7: CT | P7: AUD. PROVINCIAL (4 + Secretaría+RR) | Q7: 10 | R7: 15 | S7: 8 | T7: =Q7+R7+S7 -> 33
C8: ÁREA CIVIL, SOCIAL, CONTENCIOSO - ADMINISTRATIVA, FAMILIA, INFANCIA E CAPACIDADE E MERCANTIL | P8: XDO. PRIM. INSTANCIA (5) | Q8: 13 | R8: 22 | S8: 6 | T8: 41
C9: Xestión - Xefatura de equipo SCT TI Civil, Familia, Mercantil, CA e Social | D9: 1 | E9: 1 | F9: 1 | G9: 4,199.16 | H9: 10,134.72 | I9: Sing. | J9: CXPA | K9: CE | M9: 1101, 1104, 1105, 1106, 1202, 2001, 3101, 3106, 3107, 4001 | P9: XDO. CONT-ADTVO. (3) | Q9: 6 | R9: 9 | S9: 3 | T9: 18
C10: Xestión - SCT TI Civil, Familia, Mercantil, CA e Social | D10: 19 | E10: 19 | F10: 19 | G10: 4,199.16 | H10: 8,295.00 | I10: Xenér. | J10: CXPA | K10: CT | P10: XDO. SOCIAL (4) | Q10: 8 | R10: 16 | S10: 7 | T10: 31
C11: Tramitación - SCT TI Civil, Familia, Mercantil, CA e Social | D11: 37 | E11: 37 | F11: 33 | G11: 3,570.00 | H11: 7,889.88 | I11: Xenér. | J11: CTPA | K11: CT | P11: XDO. MERCANTIL (2) | Q11: 4 | R11: 4 | S11: 2 | T11: 10
C12: ÁREA PENAL | P12: XDO. INSTRUCIÓN (3) | Q12: 6 | R12: 12 | S12: 3 | T12: 21
C13: Xestión - Xefatura de equipo SCT TI Penal | D13: 1 | E13: 1 | F13: 1 | G13: 4,199.16 | H13: 10,134.72 | I13: Sing. | J13: CXPA | K13: CE | M13: 1102, 1104, 1202, 2001, 3102, 4001 | P13: XDO. PENAL (4) | Q13: 8 | R13: 16 | S13: 7 | T13: 31
C14: Xestión - SCT TI Penal | D14: 4 | E14: 4 | F14: 4 | G14: 4,199.16 | H14: 8,295.00 | I14: Xenér. | J14: CXPA | K14: CT | N14: GA | P14: XDO. MENORES (1) | Q14: 1 | R14: 4 | S14: 1 | T14: 6
C15: Xestión - SCT TI Penal | D15: 2 | E15: 2 | F15: 2 | G15: 4,199.16 | H15: 8,570.64 | I15: Xenér. | J15: CXPA | K15: CT | N15: GA VSM | P15: XDO. VIXILANCIA PENITENCIARIA (1) | Q15: 2 | R15: 3 | S15: 1 | T15: 6
C16: Xestión - SCT TI Penal | D16: 6 | E16: 6 | F16: 6 | G16: 4,199.16 | H16: 8,295.00 | I16: Xenér. | J16: CXPA | K16: CT | P16: DECANATO.SCA | Q16: 1 | R16: 3 | S16: 1 | T16: 5
C17: Tramitación - SCT TI Penal | D17: 8 | E17: 8 | F17: 8 | G17: 3,570.00 | H17: 7,889.88 | I17: Xenér. | J17: CTPA | K17: CT | N17: GA | P17: DECANATO. NOTIFICACIÓNS E EMBARGOS | Q17: 5 | R17: 2 | S17: 6 | T17: 13
C18: Tramitación - SCT TI Penal | D18: 4 | E18: 4 | F18: 4 | G18: 3,570.00 | H18: 8,165.40 | I18: Xenér. | J18: CTPA | K18: CT | N18: GA VSM | P18: DECANATO PRI | Q18: 0 | R18: 2 | S18: 3 | T18: 5
C19: Tramitación - SCT TI Penal | D19: 13 | E19: 13 | F19: 12 | G19: 3,570.00 | H19: 7,889.88 | I19: Xenér. | J19: CTPA | K19: CT | P19: DECANATO. ATENCIÓN Á CIDADANÍA | Q19: 1 | R19: 1 | S19: 0 | T19: 2
P20: DECANATO. REXISTRO E REPARTICIÓN | Q20: 1 | R20: 2 | S20: 1 | T20: 4
B21: CENTRO DE DESTINO: SERVIZO COMÚN XERAL (SCX) | P21: TOTAL | Q21: =SUM(Q7:Q20) -> 66 | R21: 111 | S21: =SUM(S7:S20) -> 49 | T21: =SUM(T7:T20) -> 226
B22: COD | C22: DENOMINACIÓN DO POSTO | D22: DOTACIÓN V2 | E22: DOTACIÓN V3 | F22: DOTACIÓN V4 | G22: CXP | H22: CE | I22: TIPO DE POSTO | J22: CORPO | K22: FORMA DE PROVISIÓN | L22: REQUISITOS | M22: MÉRITOS | N22: OBS. | P22: RC: | Q22: 2 | R22: 3 | S22: 1
C23: ÁREA REXISTRO - REPARTICIÓN E ASUNTOS XERAIS | Q23: =+Q21-Q22 -> 64 | R23: =+R21-R22 -> 108 | S23: 48 | T23: =+SUM(Q23:S23) -> 220
C24: Xestión - Xefatura de Área Rexistro - Repartición e Asuntos Xerais | D24: 1 | E24: 1 | F24: 1 | G24: 4,199.16 | H24: 10,441.68 | I24: Sing. | J24: CXPA | K24: CE | M24: 1101, 1102, 1104, 1105, 1106, 1108, 1202, 2001, 3110, 3111, 4001 | P24: Prazas amortizables eliminadas:
C25: Xestión - Rexistro - Repartición e Asuntos Xerais | D25: 2 | E25: 2 | F25: 2 | G25: 4,199.16 | H25: 8,295.00 | I25: Xenér. | J25: CXPA | K25: CT | P25: AP Sección 1: 1 CTPA
C26: Tramitación - Xefatura de equipo Rexistro - Repartición e Asuntos Xerais | D26: 1 | E26: 1 | F26: 1 | G26: 3,570.00 | H26: 9,729.84 | I26: Sing. | J26: CTPA | K26: CE | M26: 1101, 1102, 1104, 1105, 1106, 1202, 3110, 3111, 4001 | P26: AP Sección 2: 1 CXPA
C27: Tramitación - Rexistro - Repartición e Asuntos Xerais | D27: 6 | E27: 6 | F27: 9 | G27: 3,570.00 | H27: 7,889.88 | I27: Xenér. | J27: CTPA | K27: CT | P27: AP Sección 2: 1 CTPA
C28: Auxilio - Xefatura de equipo Rexistro - Repartición e Asuntos Xerais | D28: 1 | E28: 1 | F28: 1 | G28: 2,682.48 | H28: 9,660.72 | I28: Sing. | J28: CAX | K28: CE | M28: 1104, 1202, 3110, 3113, 4001 | P28: AP Sección 3: 1 CXPA
C29: Auxilio -Rexistro - Repartición e Asuntos Xerais | D29: 2 | E29: 2 | F29: 2 | G29: 2,682.48 | H29: 7,820.76 | I29: Xenér. | J29: CAX | K29: CT | N29: GA | P29: AP Sección 3: 1 CTPA
C30: Auxilio -Rexistro - Repartición e Asuntos Xerais | D30: 1 | E30: 1 | F30: 1 | G30: 2,682.48 | H30: 8,096.28 | I30: Xenér. | J30: CAX | K30: CT | N30: GA VSM | P30: AP Sección 3: 1 CAX
C31: Auxilio - Rexistro - Repartición e Asuntos Xerais | D31: 36 | E31: 36 | F31: 36 | G31: 2,682.48 | H31: 7,820.76 | I31: Xenér. | J31: CAX | K31: CT | P31: AP Sección 4: 1 CXPA
C32: ÁREA ACTOS DE COMUNICACIÓN | P32: AP Sección 4: 1 CTPA
C33: Xestión - Xefatura de Área Actos de Comunicación | D33: 1 | E33: 1 | F33: 1 | G33: 4,199.16 | H33: 12,353.88 | I33: Sing. | J33: CXPA | K33: CE | M33: 1101, 1102, 1104, 1105, 1106, 1108,1202, 2001, 3112, 4001 | P33: AP Secretaría: 1 CTPA
C34: Xestión - Actos de Comunicación | D34: 1 | E34: 1 | F34: 1 | G34: 4,199.16 | H34: 10,207.20 | I34: Xenér. | J34: CXPA | K34: CT
C35: Tramitación - Actos de Comunicación | D35: 2 | E35: 2 | F35: 2 | G35: 3,570.00 | H35: 8,654.88 | I35: Xenér. | J35: CTPA | K35: CT
C36: Auxilio - Xefatura de equipo Actos de Comunicación | D36: 1 | E36: 1 | F36: 1 | G36: 2,682.48 | H36: 11,572.68 | I36: Sing. | J36: CAX | K36: CE | M36: 1104, 1108, 1202, 3112, 4001
C37: Auxilio - Actos de Comunicación | D37: 7 | E37: 7 | F37: 7 | G37: 2,682.48 | H37: 9,732.72 | I37: Xenér. | J37: CAX | K37: CT
B39: CENTRO DE DESTINO: SERVIZO COMÚN DE EXECUCIÓN (SCEX)
B40: COD | C40: DENOMINACIÓN DO POSTO | D40: DOTACIÓN V2 | E40: DOTACIÓN V3 | F40: DOTACIÓN V4 | G40: CXP | H40: CE | I40: TIPO DE POSTO | J40: CORPO | K40: FORMA DE PROVISIÓN | L40: REQUISITOS | M40: MÉRITOS | N40: OBS.
C41: ÁREA CIVIL, SOCIAL, CONTENCIOSO - ADMINISTRATIVA, FAMILIA, INFANCIA E CAPACIDADE E MERCANTIL
C42: Xestión - Xefatura de equipo SCEX Civil, Familia, Mercantil, CA e Social | D42: 1 | E42: 1 | F42: 1 | G42: 4,199.16 | H42: 10,134.72 | I42: Sing. | J42: CXPA | K42: CE | M42: 1101, 1104, 1105, 1106, 1202, 2001, 3103, 3108, 3109, 4001
C43: Xestión - SCEX Civil, Familia, Mercantil, CA e Social | D43: 7 | E43: 7 | F43: 8 | G43: 4,199.16 | H43: 8,295.00 | I43: Xenér. | J43: CXPA | K43: CT
C44: Tramitación - SCEX Civil, Familia, Mercantil, CA e Social | D44: 9 | E44: 9 | F44: 10 | G44: 3,570.00 | H44: 7,889.88 | I44: Xenér. | J44: CTPA | K44: CT
C45: ÁREA PENAL
C46: Xestión - Xefatura de equipo SCEX Penal | D46: 1 | E46: 1 | F46: 1 | G46: 4,199.16 | H46: 10,134.72 | I46: Sing. | J46: CXPA | K46: CE | M46: 1102, 1104, 1202, 2001, 3104, 4001
C47: Xestión - SCEX Penal | D47: 7 | E47: 7 | F47: 8 | G47: 4,199.16 | H47: 8,295.00 | I47: Xenér. | J47: CXPA | K47: CT
C48: Tramitación - SCEX Penal | D48: 13 | E48: 13 | F48: 13 | G48: 3,570.00 | H48: 7,889.88 | I48: Xenér. | J48: CTPA | K48: CT
C50: Ex civil: | E50: 2,216 | F50: =+E50/SUM(F42:F44) -> 116.6 | G50: por funcionario
C51: Ex penal: | E51: 3,223 | F51: =+E51/SUM(F46:F48) -> 146.5 | G51: por funcionario
C53: SCT: | D53: =+#REF!/#REF! ->  | E53: =+SUM(F6:F19) -> 112 | F53: =+E53/$E$56 -> 66% | H53: PLANTILLA NOVA OFICINA
C54: SCX: | D54: =+#REF!/#REF! ->  | E54: =+SUM(F24:F27)+SUM(F33:F35) -> 17 | F54: =+E54/$E$56 -> 10% | H54: CXPA | I54: CTPA | J54: CAX | K54: TOTAL
C55: SCEX: | D55: =+#REF!/#REF! ->  | E55: =+SUM(F42:F48) -> 41 | F55: 24% | H55: =+F6+F9+F10+F13+F14+F15+F16+F24+F25+F33+F34+F42+F43+F46+F47 -> 64 | I55: =+F7+F11+F17+F18+F19+F26+F27+F35+F44+F48 -> 106 | J55: =+F28+F29+F30+F31+F36+F37 -> 48 | K55: =+H55+I55+J55 -> 218
E56: =+SUM(E53:E55) -> 170 | I56: 2 SG

Sheet VIGO
B2: LOCALIDADE: VIGO
B4: CENTRO DE DESTINO: SERVIZO COMÚN DE TRAMITACIÓN DO TRIBUNAL DE INSTANCIA (SCT TI) E SERVIZO COMÚN DE TRAMITACIÓN DA AUDIENCIA PROVINCIAL (SCT AP) | Q4: PLANTILLA ACTUAL
B5: COD | C5: DENOMINACIÓN DO POSTO | D5: DOTACIÓN V2 | E5: DOTACIÓN V3 | F5: DOTACIÓN V4 | G5: CXP | H5: CE | I5: TIPO DE POSTO | J5: CORPO | K5: FORMA DE PROVISIÓN | L5: REQUISITOS | M5: MÉRITOS | N5: OBS. | Q5: CXPA | R5: CTPA | S5: CAX | T5: TOTAL
C6: Xestión - Xefatura de equipo SCT AP | D6: 1 | E6: 1 | F6: 1 | G6: 4,199.16 | H6: 10,134.72 | I6: Sing. | J6: CXPA | K6: CE | M6: 1101, 1102, 1104, 1202, 2001, 3116, 4001 | P6: AUD. PROVINCIAL (2) | Q6: 6 | R6: 8 | S6: 3 | T6: =Q6+R6+S6 -> 17
C7: Xestión - SCT AP | D7: 4 | E7: 4 | F7: 4 | G7: 4,199.16 | H7: 8,295.00 | I7: Xenér. | J7: CXPA | K7: CT | P7: XDO. PRIM. INSTANCIA (16) | Q7: 51 | R7: 64 | S7: 16 | T7: =Q7+R7+S7 -> 131
C8: Tramitación - SCT AP | D8: 7 | E8: 7 | F8: 7 | G8: 3,570.00 | H8: 7,889.88 | I8: Xenér. | J8: CTPA | K8: CT | P8: XDO. CONT-ADTVO. (2) | Q8: 4 | R8: 6 | S8: 2 | T8: =Q8+R8+S8 -> 12
C9: ÁREA CIVIL, FAMILIA, INFANCIA E CAPACIDADE E MERCANTIL | P9: XDO. SOCIAL (7) | Q9: 14 | R9: 28 | S9: 14 | T9: =Q9+R9+S9 -> 56
C10: Xestión - Xefatura de equipo SCT TI Civil e Merc. | D10: 1 | E10: 1 | F10: 1 | G10: 4,199.16 | H10: 10,134.72 | I10: Sing. | J10: CXPA | K10: CE | M10: 1101, 1104,1202, 2001, 3101, 4001 | P10: XDO. MERCANTIL (1) | Q10: 2 | R10: 3 | S10: 1 | T10: =Q10+R10+S10 -> 6
C11: Xestión - SCT TI Civil, Familia e Merc. | D11: 40 | E11: 37 | F11: 30 | G11: 4,199.16 | H11: 8,295.00 | I11: Xenér. | J11: CXPA | K11: CT | P11: XDO. INSTRUCIÓN (8) | Q11: 16 | R11: 32 | S11: 16 | T11: 64
C12: Tramitación - Xefatura de equipo SCT TI Civil e Merc. | D12: 1 | E12: 1 | F12: 1 | G12: 3,570.00 | H12: 9,729.84 | I12: Sing. | J12: CTPA | K12: CE | M12: 1101, 1104,1202, 3101, 4001 | P12: XDO. PENAL (3) | Q12: 6 | R12: 12 | S12: 6 | T12: 24
C13: Tramitación - SCT TI Civil, Familia e Merc. | D13: 47 | E13: 44 | F13: 38 | G13: 3,570.00 | H13: 7,889.88 | I13: Xenér. | J13: CTPA | K13: CT | P13: XDO. VSM | Q13: 2 | R13: 5 | S13: 2 | T13: 9
C14: Equipo familia, infancia e capacidade | P14: DECANATO.SCA | Q14: 3 | R14: 6 | S14: 2 | T14: =Q14+R14+S14 -> 11
C15: Xestión - Xefatura de equipo SCT TI Familia, infancia e capacidade | D15: 1 | E15: 1 | F15: 1 | G15: 4,199.16 | H15: 10,134.72 | I15: Sing. | J15: CXPA | K15: CE | M15: 1101, 1104,1202, 2001, 3101, 4001 | P15: DECANATO. NOTIFICACIÓNS E EMBARGOS | Q15: 8 | R15: 4 | S15: 8 | T15: =Q15+R15+S15 -> 20
C16: Xestión - SCT TI Civil, Familia e Merc. (Equipo Familia, infancia e capacidade) | E16: 3 | F16: 9 | G16: 4,199.16 | H16: 8,295.00 | I16: Xenér. | J16: CXPA | K16: CT | P16: DECANATO | Q16: 1 | R16: 5 | S16: 5 | T16: 11
C17: Tramitación - SCT TI Civil, Familia e Merc. (Equipo Familia, infancia e capacidade) | E17: 3 | F17: 9 | G17: 3,570.00 | H17: 7,889.88 | I17: Xenér. | J17: CTPA | K17: CT | P17: DECANATO. ATENCIÓN Á CIDADANÍA | Q17: 1 | R17: 1 | S17: 0 | T17: 2
C18: ÁREA SOCIAL E CONTENCIOSO-ADMINISTRATIVA | P18: TOTAL | Q18: =SUM(Q5:Q17) -> 114 | R18: =SUM(R5:R17) -> 174 | S18: =SUM(S5:S17) -> 75 | T18: =SUM(T5:T17) -> 363
C19: Xestión - Xefatura de equipo SCT TI CA e Social | D19: 1 | E19: 1 | F19: 1 | G19: 4,199.16 | H19: 10,134.72 | I19: Sing. | J19: CXPA | K19: CE | M19: 1104, 1105, 1106. 1202, 2001, 3106, 3107, 4001 | P19: Prazas amortizables eliminadas:
C20: Xestión - SCT TI CA e Social | D20: 13 | E20: 13 | F20: 13 | G20: 4,199.16 | H20: 8,295.00 | I20: Xenér. | J20: CXPA | K20: CT | P20: AP Sección N 6: 1 CAX
C21: Tramitación - Xefatura de equipo SCT TI CA e Social | D21: 1 | E21: 1 | F21: 1 | G21: 3,570.00 | H21: 9,729.84 | I21: Sing. | J21: CTPA | K21: CE | M21: 1104, 1105, 1106. 1202, 3106, 3107, 4001 | P21: Xdo. Instancia N.5: 1 CTPA
C22: Tramitación - SCT TI CA e Social | D22: 29 | E22: 29 | F22: 29 | G22: 3,570.00 | H22: 7,889.88 | I22: Xenér. | J22: CTPA | K22: CT
C23: ÁREA PENAL
C24: Xestión - Xefatura de equipo SCT TI Penal | D24: 1 | E24: 1 | F24: 1 | G24: 4,199.16 | H24: 10,134.72 | I24: Sing. | J24: CXPA | K24: CE | M24: 1102, 1104, 1202, 2001, 3102, 4001
C25: Xestión - SCT TI Penal | D25: 14 | E25: 14 | F25: 16 | G25: 4,199.16 | H25: 8,295.00 | I25: Xenér. | J25: CXPA | K25: CT | N25: GA
C26: Xestión - SCT TI Penal | D26: 2 | E26: 2 | F26: 2 | G26: 4,199.16 | H26: 8,570.64 | I26: Xenér. | J26: CXPA | K26: CT | N26: VSM
C27: Xestión - SCT TI Penal | D27: 2 | E27: 2 | F27: 0 | G27: 4,199.16 | H27: 8,295.00 | I27: Xenér. | J27: CXPA | K27: CT
C28: Tramitación - Xefatura de equipo SCT TI Penal | D28: 1 | E28: 1 | F28: 1 | G28: 3,570.00 | H28: 9,729.84 | I28: Sing. | J28: CTPA | K28: CE | M28: 1102, 1104, 1202, 3102, 4001
C29: Tramitación - SCT TI Penal | D29: 28 | E29: 28 | F29: 32 | G29: 3,570.00 | H29: 7,889.88 | I29: Xenér. | J29: CTPA | K29: CT | N29: GA
C30: Tramitación - SCT TI Penal | D30: 5 | E30: 6 | F30: 7 | G30: 3,570.00 | H30: 8,165.40 | I30: Xenér. | J30: CTPA | K30: CT | N30: VSM
C31: Tramitación - SCT TI Penal | D31: 14 | E31: 13 | F31: 9 | G31: 3,570.00 | H31: 7,889.88 | I31: Xenér. | J31: CTPA | K31: CT
B33: CENTRO DE DESTINO: SERVIZO COMÚN XERAL (SCX)
B34: COD | C34: DENOMINACIÓN DO POSTO | D34: DOTACIÓN V2 | E34: DOTACIÓN V3 | F34: DOTACIÓN V4 | G34: CXP | H34: CE | I34: TIPO DE POSTO | J34: CORPO | K34: FORMA DE PROVISIÓN | L34: REQUISITOS | M34: MÉRITOS | N34: OBS.
C35: ÁREA REXISTRO - REPARTICIÓN E ASUNTOS XERAIS
C36: Xestión - Xefatura de Área Rexistro - Repartición e Asuntos Xerais | D36: 1 | E36: 1 | F36: 1 | G36: 4,199.16 | H36: 10,441.68 | I36: Sing. | J36: CXPA | K36: CE | M36: 1101, 1102, 1104, 1105, 1106, 1108, 1202, 2001, 3110, 3111, 4001
C37: Xestión - Rexistro - Repartición e Asuntos Xerais | D37: 5 | E37: 5 | F37: 5 | G37: 4,199.16 | H37: 8,295.00 | I37: Xenér. | J37: CXPA | K37: CT
C38: Tramitación - Xefatura de equipo Rexistro - Repartición e Asuntos Xerais | D38: 1 | E38: 1 | F38: 1 | G38: 3,570.00 | H38: 9,729.84 | I38: Sing. | J38: CTPA | K38: CE | M38: 1101, 1102, 1104, 1105, 1106, 1202, 3110, 3111, 4001
C39: Tramitación - Rexistro - Repartición e Asuntos Xerais | D39: 6 | E39: 6 | F39: 6 | G39: 3,570.00 | H39: 7,889.88 | I39: Xenér. | J39: CTPA | K39: CT
C40: Auxilio - Xefatura de equipo Rexistro - Repartición e Asuntos Xerais | D40: 1 | E40: 1 | F40: 1 | G40: 2,682.48 | H40: 9,660.72 | I40: Sing. | J40: CAX | K40: CE | M40: 1104, 1202, 3110, 3113, 4001
C41: Auxilio - Rexistro - Repartición e Asuntos Xerais | D41: 14 | E41: 14 | F41: 16 | G41: 2,682.48 | H41: 7,820.76 | I41: Xenér. | J41: CAX | K41: CT | N41: GA
C42: Auxilio - Rexistro - Repartición e Asuntos Xerais | D42: 2 | E42: 2 | F42: 2 | G42: 2,682.48 | H42: 8,096.28 | I42: Xenér. | J42: CAX | K42: CT | N42: VSM
C43: Auxilio - Rexistro - Repartición e Asuntos Xerais | D43: 46 | E43: 46 | F43: 44 | G43: 2,682.48 | H43: 7,820.76 | I43: Xenér. | J43: CAX | K43: CT
C44: ÁREA ACTOS DE COMUNICACIÓN
C45: Xestión - Xefatura de Área Actos de Comunicación | D45: 1 | E45: 1 | F45: 1 | G45: 4,199.16 | H45: 12,353.88 | I45: Sing. | J45: CXPA | K45: CE | M45: 1101, 1102, 1104, 1105, 1106, 1108,1202, 2001, 3112, 4001
C46: Xestión - Actos de Comunicación | D46: 3 | E46: 3 | F46: 3 | G46: 4,199.16 | H46: 10,207.20 | I46: Xenér. | J46: CXPA | K46: CT
C47: Tramitación - Xefatura de equipo Actos de Comunicación | D47: 1 | E47: 1 | F47: 1 | G47: 3,570.00 | H47: 10,494.84 | I47: Sing. | J47: CTPA | K47: CE | M47: 1101, 1102, 1104, 1105, 1106, 1108,1202, 3112, 4001
C48: Tramitación - Actos de Comunicación | D48: 4 | E48: 4 | F48: 4 | G48: 3,570.00 | H48: 8,654.88 | I48: Xenér. | J48: CTPA | K48: CT
C49: Auxilio - Xefatura de equipo Actos de Comunicación | D49: 1 | E49: 1 | F49: 1 | G49: 2,682.48 | H49: 11,572.68 | I49: Sing. | J49: CAX | K49: CE | M49: 1104, 1108, 1202, 3112, 4001
C50: Auxilio - Actos de Comunicación | D50: 11 | E50: 11 | F50: 11 | G50: 2,682.48 | H50: 9,732.72 | I50: Xenér. | J50: CAX | K50: CT
B52: CENTRO DE DESTINO: SERVIZO COMÚN DE EXECUCIÓN (SCEX)
B53: COD | C53: DENOMINACIÓN DO POSTO | D53: DOTACIÓN V2 | E53: DOTACIÓN V3 | F53: DOTACIÓN V4 | G53: CXP | H53: CE | I53: TIPO DE POSTO | J53: CORPO | K53: FORMA DE PROVISIÓN | L53: REQUISITOS | M53: MÉRITOS | N53: OBS.
C54: ÁREA CIVIL, SOCIAL, CONTENCIOSO - ADMINISTRATIVA, FAMILIA, INFANCIA E CAPACIDADE E MERCANTIL
C55: Xestión - Xefatura de equipo SCEX Civil, Familia, Mercantil, CA e Social | D55: 1 | E55: 1 | F55: 1 | G55: 4,199.16 | H55: 10,134.72 | I55: Sing. | J55: CXPA | K55: CE | M55: 1101, 1104, 1105, 1106, 1202, 2001, 3103, 3108, 3109, 4001
C56: Xestión - SCEX Civil, Familia, Mercantil, CA e Social | D56: 14 | E56: 14 | F56: 14 | G56: 4,199.16 | H56: 8,295.00 | I56: Xenér. | J56: CXPA | K56: CT
C57: Tramitación - SCEX Civil, Familia, Mercantil, CA e Social | D57: 17 | E57: 17 | F57: 17 | G57: 3,570.00 | H57: 7,889.88 | I57: Xenér. | J57: CTPA | K57: CT
C58: ÁREA PENAL
C59: Xestión - Xefatura de equipo SCEX Penal | D59: 1 | E59: 1 | F59: 1 | G59: 4,199.16 | H59: 10,134.72 | I59: Sing. | J59: CXPA | K59: CE | M59: 1102, 1104, 1202, 2001, 3104, 4001
C60: Xestión - SCEX Penal | D60: 9 | E60: 9 | F60: 9 | G60: 4,199.16 | H60: 8,295.00 | I60: Xenér. | J60: CXPA | K60: CT
C61: Tramitación - SCEX Penal | D61: 12 | E61: 12 | F61: 12 | G61: 3,570.00 | H61: 7,889.88 | I61: Xenér. | J61: CTPA | K61: CT
E63: Ex civil: | F63: 5,385 | G63: =+F63/SUM(F55:F57) -> 168.3 | H63: por funcionario
E64: Ex penal: | F64: 3,311 | G64: =+F64/SUM(F59:F61) -> 150.5 | H64: por funcionario
E66: SCT: | F66: =+SUM(F6:F31) -> 213 | G66: =+F66/$F$69 -> 74% | I66: PLANTILLA NOVA OFICINA
E67: SCX: | F67: =+SUM(F36:F39)+SUM(F45:F48) -> 22 | G67: =+F67/$F$69 -> 8% | I67: CXPA | J67: CTPA | K67: CAX | L67: TOTAL
E68: SCEX: | F68: =+SUM(F55:F61) -> 54 | G68: 19% | I68: =+F6+F7+F10+F11+F15+F16+F19+F20+F24+F25+F26+F27+F36+F37+F45+F46+F55+F56+F59+F60 -> 114 | J68: =+F8+F12+F13+F17+F21+F22+F28+F29+F30+F31+F38+F39+F47+F48+F57+F61 -> 175 | K68: =+F40+F41+F42+F43+F49+F50 -> 75 | L68: =+SUM(I68:K68) -> 364
F69: =+SUM(F66:F68) -> 289 | J69: 1 | K69: VSM
